Workbook

Sheet WDI_Standard_Order_Form
A1: WDI Company - Window Box Order Form Please complete Green/Tan Cells Only | H1: WDI (651) 464-6190 Fax: (651) 464-6191 | N1: Both: | O1: =IF(+L5<1,+CONCATENATE("#",C5," ",I4,+" PO#",+C3," ",+C2," - ",+I5," Bx in Color #", +M9," - Due: ",+AF5), +CONCATENATE("#",+C5," ",+I4,+" PO#",+C3," ",+C2," - ",+I5," Bx in Color #",+M9," + ",+L5," Parts - Due: ",+AF5)) -> # PO# - 1 Bx in Color # - Due: 01/00 | R1: WDI Company | AL1: Error Codes ---> | BA1: Other logic faults -->
B2: Job Name: | H2: Order Date: | N2: Box: | O2: =IF(+L5<1,+CONCATENATE("#",C5," ",I4,+" PO#",+C3," ",+C2," - ",+I5," Bx in Color #", +M9," - Due: ",+AF5), +CONCATENATE("#",+C5," ",+I4,+" PO#",+C3," ",+C2," - ",+I5," Bx in Color #",+M9," + ",+AF5)) -> # PO# - 1 Bx in Color # - Due: 01/00 | R2: 651) 464-6190 (800) 899-4265 | AE2: Price Deck: | AF2: =IF(I4="CRI","C","W") -> W | AG2: Formulas include casing width, stop size | AM2: 1 | AN2: 2 | AO2: 3 | AP2: 3.1 | AQ2: 3.2 | AR2: 4 | AS2: 5 | AT2: 7 | AU2: 8 | AV2: 9 | AW2: 10 | AX2: 11 | AY2: 12 | AZ2: 13 | BA2: 14 | BB2: 15 | BC2: 16 | BD2: 17 | BE2: 18
B3: PO #: | H3: WDI Ship Date: | M3: =IF(I3-I2<14,"Short lead time, Rush charges may apply",IF(I3-I2>30,"Ship date is >30 days","")) -> Short lead time, Rush charges may apply | N3: Parts: | O3: =IF(+L5<1,+CONCATENATE("#",C5," ",I4,+" PO#",+C3," ",+C2," - "," - Due: ",+AF5), +CONCATENATE("#",+C5," ",+I4,+" PO#",+C3," ",+C2," - ",+M9," + ",+SUM(B21:B24)," Millwork Parts - Due: ",+AF5)) -> # PO# - - Due: 01/00 | R3: Fax: (651) 464-6191 | AE3: Scaler: | AF3: 0.515 | AG3: white premium, CRI vs WDI Pricing | BI3: Errors
B4: Ordered By: | H4: Customer Name: | R4: www.WDICustomWood.com | AI4: CALCS | AM4: *Box width too small/large | AN4: *Box height too small/large | AO4: *Opening Type Error | AP4: *Dim A & No stool selected | AQ4: *Dim B & No stool selected | AR4: *Jamb Species not stock | AS4: *Jamb depth too small/large | AT4: *Casing Profile not stock | AU4: *Casing width not stock | AW4: *Stop/Mull Profile not stock | AX4: *Stop width too small/large | AY4: *Not a stock color | AZ4: *Notes Err | BA4: *Refuse White on Oak | BC4: *Stop is wider than jamb | BI4: =+AM4 -> *Box width too small/large | BJ4: =+AN4 -> *Box height too small/large | BK4: =+AO4 -> *Opening Type Error | BL4: *Dim A & No stool selected | BM4: *Dim B & No stool selected | BN4: =+AR4 -> *Jamb Species not stock | BO4: =+AS4 -> *Jamb depth too small/large | BP4: =+AT4 -> *Casing Profile not stock | BQ4: *Casing width not stock | BR4: 0 | BS4: *Stop/Mull Profile not stock | BT4: *Stop width too small/large | BU4: *Not a stock color | BV4: =+AZ4 -> *Notes Err | BW4: *Refuse White on Oak | BX4: 0 | BY4: *Stop is wider than jamb | BZ4: 0 | CA4: 0 | CC4: string errors | CF4: Line Count check | CH4: Weight Calcs -->
B5: WDI Job # | H5: # Window Line Items: | I5: 1 | K5: # Parts Line Items: | M5: Total Items: | N5: =+L5+I5 -> 1 | O5: =IF(+I5+L5<>+N5,"Error - Line Count Off !!","") ->  | Q5: See our window video: | R5: http://www.wdicustomwood.com/building-products | AE5: Due: | AF5: =TEXT(I3,"MM/DD") -> 01/00 | CK5: Weights --> | CN5: Total
B6: Box Size (O.D.) | D6: Type | E6: Stools | G6: Species | H6: Jamb Depth | I6: Casing Profile # | J6: Casing | K6: Stop/Mull (WDST-numbers) | L6: Stop/Mull | M6: Window | N6: Notes | O6: Order messages & errors | Q6: Window | R6: Window | S6: Additional | T6: Additional | U6: Additional | V6: Additional | W6: Additional | X6: Window | AH6: Casing | AI6: Casing Profile # | AM6: Box Size (O.D.) | AO6: Opening Type | AP6: Stools | AR6: Jamb | AS6: Jamb Depth | AT6: Casing Profile # | AU6: Casing | AW6: Stop/Mull (WDST-numbers) | AX6: Stop/Mull | AY6: Window | AZ6: Notes | BB6: Open 7/11/14 | BI6: Box Size (O.D.) | BK6: Opening Type | BL6: Stools | BN6: Jamb | BO6: Jamb Depth | BP6: Casing Profile # | BQ6: Casing | BS6: Stop/Mull (WDST #....) | BT6: Stop/Mull | BU6: Window | BV6: Notes | CH6: UI | CI6: lft | CJ6: Jamb Width | CK6: Casing #/Lft | CL6: Stop #/lft | CM6: 1" Jamb #/lft | CN6: Weight | CO6: Jamb? | CP6: Casing ? | CQ6: Stop?
A7: # | B7: Width | C7: Height | D7: Opening | E7: Dim A | F7: Dim B | G7: Species (Oak, Maple, Poplar) | H7: From inside of Window | I7: (WDI #113, #115, #118) | J7: Width (2.25", 2.5", 3.25") | K7: Stock Profiles #006, 007, 009, 011 * | L7: Width (Standard = 1.25") | M7: Color # (from color chips dated 2019 or newer) | N7: Descriptions | Q7: Pricing Length (Inches) | R7: Casing & Jamb Price | S7: Stop Charges | T7: Items & Charges | U7: Items & Charges | V7: Items & Charges | W7: Items & Charges | X7: Total Price | AA7: Weight (lbs) | AH7: Width (2.25", 2.5", 3.25") | AI7: Revised Casing Name | AM7: Width | AN7: Height | AP7: Dim A | AQ7: Dim B | AR7: Species (Oak, Maple, Poplar) | AS7: From inside of Window | AT7: (WDI #113, #115, #118, etc.) | AU7: Width (2.25", 2.5", 3.25") | AW7: Stock Profiles #006, 007, 009, 011 | AX7: Width (Standard = 1.25") | AY7: Color | AZ7: Descriptions | BA7: White on Oak check | BC7: Stop wider than jamb | BG7: SUM | BI7: Width | BJ7: Height | BL7: Dim A | BM7: Dim B | BN7: Species (Oak, Maple, Poplar) | BO7: From inside of Window | BP7: (WDI #113, #115, #118, etc.) | BQ7: Width (2.25, 3.25, 5.0") | BS7: Profile #004, 006, 007, 008, 009, 011) | BT7: Width (Standard = 1.25") | BU7: Color | BV7: Descriptions | CC7: <-- ERROR MESSAGES --> | CK7: 0.42 | CL7: 0.15 | CM7: 0.23
A8: 1 | B8: 2 | C8: 3 | G8: 4 | H8: 5 | I8: 6 | J8: 8 | K8: 9 | M8: 10 | N8: 11 | P8: 12 | Q8: 13 | R8: 14 | W8: 16 | X8: 17 | AA8: 16 | AC8: 19 | AD8: 20 | AH8: 8 | AI8: 6
A9: 1 | D9: W | L9: =IF(K9="","",IF(K9="006",IF(H9>2,1.25,1), IF(K9="007",2, IF(K9="009",0.75, IF(K9="011",1.25,IF(K9="001",0.75,0.754)))))) ->  | O9: =+CC9 -> - Invalid Line - | Q9: =SUM(B9:C9) -> 0 | R9: =+Price_Matrix!T54 -> 0 | S9: =+Price_Matrix!T84 -> 0 | X9: =SUM(R9:W9) -> 0 | AA9: =+CN9 -> 0 | AH9: =IF(J9=2.25,"R ",IF(J9=2.5,"W ",IF(J9=3.25,"EW",""))) ->  | AI9: =+CONCATENATE(I9,AH9) ->  | AL9: =IF(D9="W",1,IF(D9="S",1,IF(D9="D",1,IF(D9="H",1,IF(D9="O",1,IF(D9="C",1,"Error**")))))) -> 1 | AM9: =IF(B9<10,IF(B9>96,10,0),0) -> 0 | AN9: =IF(C9<10,IF(C9>96,20,0),0) -> 0 | AO9: =IF(D9="W",0,IF(D9="S",0,IF(D9="D",0,IF(D9="H",0,IF(D9="O",0,IF(D9="C",0,30)))))) -> 0 | AP9: =IF(D9<>"S",IF(E9<>0,31,0),0) -> 0 | AQ9: =IF(D9<>"S",IF(F9<>0,31,0),0) -> 0 | AR9: =IF(G9="Oak",0,IF(G9="Maple",0,IF(G9="Poplar",0,40))) -> 40 | AS9: =IF(B9<>0,IF(H9<1,50, IF(H9>6.5,51,0)),0) -> 0 | AT9: =IF(I9=113,0,IF(I9=115,0,IF(I9=118,0,70))) -> 70 | AU9: =IF(J9=2.25,0,IF(J9=2.5,0,IF(J9=3.25,0,80))) -> 80 | AW9: =IF(K9="006",0,IF(K9="007",0,IF(K9="009",0,IF(K9="011",0,IF(K9="001",0,100))))) -> 100 | AX9: =IF(L9<0.5,IF(L9>3,110,0),0) -> 0 | AY9: =IF(M9>=50,IF(M9<=76,0,IF(M9=30,0,121)),120) -> 120 | BA9: =IF(M9=75,IF(G9="Oak",150,0),0) -> 0 | BC9: =IF(L9>H9,160,0) -> 0 | BG9: =SUM(AM9:BF9) -> 410 | BI9: =IF(AM9=0,"",+AM$4) ->  | BJ9: =IF(AN9=0,"",+AN$4) ->  | BK9: =IF(AO9=0,"",+AO$4) ->  | BL9: =IF(AP9=0,"",+AP$4) ->  | BM9: =IF(AQ9=0,"",+AQ$4) ->  | BN9: =IF(AR9=0,"",+AR$4) -> *Jamb Species not stock | BO9: =IF(AS9=0,"",+AS$4) ->  | BP9: =IF(AT9=0,"",+AT$4) -> *Casing Profile not stock | BQ9: =IF(AU9=0,"",+AU$4) -> *Casing width not stock | BR9: =IF(AV9=0,"",+AV$4) ->  | BS9: =IF(AW9=0,"",+AW$4) -> *Stop/Mull Profile not stock | BT9: =IF(AX9=0,"",+AX$4) ->  | BU9: =IF(AY9=0,"",+AY$4) -> *Not a stock color | BV9: =IF(AZ9=0,"",+AZ$4) ->  | BW9: =IF(BA9=0,"",+BA$4) ->  | BX9: =IF(BB9=0,"",+BB$4) ->  | BY9: =IF(BC9=0,"",+BC$4) ->  | BZ9: =IF(BD9=0,"",+BD$4) ->  | CA9: =IF(BE9=0,"",+BE$4) ->  | CC9: =IF(B9<>"",+CONCATENATE(BI9,BJ9,BK9,BL9,BM9,BN9,BO9,BP9,BQ9,BS9,BT9,BU9,BV9,BW9,BX9,BY9,BZ9,CA9),"- Invalid Line -") -> - Invalid Line - | CH9: =+Q9 -> 0 | CI9: =+CH9*2/12 -> 0 | CJ9: =+E9+H9 -> 0 | CK9: =IF(CP9<>0,+CI9*$CK$7,0) -> 0 | CL9: =IF(CQ9<>0,+CI9*$CL$7,0) -> 0 | CM9: =+CI9*CJ9*$CM$7 -> 0 | CN9: =SUM(CK9:CM9) -> 0 | CO9: =+H9 -> 0 | CP9: =+J9 -> 0 | CQ9: =+L9 ->  | CS9: =+AT9 -> 70
A10: 2 | D10: W | M10: =IF(M9="","",+M9) ->  | O10: - Invalid Line - | Q10: =SUM(B10:C10) -> 0 | R10: =+Price_Matrix!T55 -> 0 | S10: =+Price_Matrix!T85 -> 0 | X10: =SUM(R10:W10) -> 0 | AA10: =+CN10 -> 0 | AL10: 1 | AM10: 0 | AN10: 0 | AO10: 0 | AP10: 0 | AQ10: 0 | AR10: 40 | AS10: 0 | AT10: 70 | AU10: 80 | AW10: 100 | AX10: 0 | AY10: =IF(M10>=50,IF(M10<=76,0,IF(M10=30,0,121)),120) -> 121 | BA10: =IF(M10=75,IF(G10="Oak",150,0),0) -> 0 | BC10: 0 | BG10: =SUM(AM10:BF10) -> 411 | BI10: =IF(AM10=0,"",+AM$4) ->  | BN10: *Jamb Species not stock | BP10: *Casing Profile not stock | BQ10: *Casing width not stock | BS10: *Stop/Mull Profile not stock | BU10: *Not a stock color | CC10: - Invalid Line - | CH10: 0 | CI10: =+CH10*2/12 -> 0 | CJ10: 0 | CK10: =IF(CP10<>0,+CI10*$CK$7,0) -> 0 | CL10: =IF(CQ10<>0,+CI10*$CL$7,0) -> 0 | CM10: =+CI10*CJ10*$CM$7 -> 0 | CN10: =SUM(CK10:CM10) -> 0 | CO10: 0 | CP10: =+J10 -> 0 | CQ10: =+L10 -> 
A11: 3 | D11: W | O11: - Invalid Line - | Q11: 0 | R11: =+Price_Matrix!T56 -> 0 | S11: =+Price_Matrix!T86 -> 0 | X11: 0 | AA11: 0 | AL11: 1 | AM11: 0 | AN11: 0 | AO11: 0 | AP11: 0 | AQ11: 0 | AR11: 40 | AS11: 0 | AT11: 70 | AU11: 80 | AW11: 100 | AX11: 0 | AY11: 121 | BA11: 0 | BC11: 0 | BG11: 411 | BN11: *Jamb Species not stock | BP11: *Casing Profile not stock | BQ11: *Casing width not stock | BS11: *Stop/Mull Profile not stock | BU11: *Not a stock color | CC11: - Invalid Line - | CH11: 0 | CI11: 0 | CJ11: 0 | CK11: 0 | CL11: 0 | CM11: 0 | CN11: 0 | CO11: 0 | CP11: 0
A12: 4 | D12: W | O12: - Invalid Line - | Q12: 0 | R12: =+Price_Matrix!T57 -> 0 | S12: =+Price_Matrix!T87 -> 0 | X12: 0 | AA12: 0 | AL12: 1 | AM12: 0 | AN12: 0 | AO12: 0 | AP12: 0 | AQ12: 0 | AR12: 40 | AS12: 0 | AT12: 70 | AU12: 80 | AW12: 100 | AX12: 0 | AY12: 121 | BA12: 0 | BC12: 0 | BG12: 411 | BN12: *Jamb Species not stock | BP12: *Casing Profile not stock | BQ12: *Casing width not stock | BS12: *Stop/Mull Profile not stock | BU12: *Not a stock color | CC12: - Invalid Line - | CH12: 0 | CI12: 0 | CJ12: 0 | CK12: 0 | CL12: 0 | CM12: 0 | CN12: 0 | CO12: 0 | CP12: 0
A13: 5 | D13: W | O13: - Invalid Line - | Q13: 0 | R13: =+Price_Matrix!T58 -> 0 | S13: =+Price_Matrix!T88 -> 0 | X13: 0 | AA13: 0 | AL13: 1 | AM13: 0 | AN13: 0 | AO13: 0 | AP13: 0 | AQ13: 0 | AR13: 40 | AS13: 0 | AT13: 70 | AU13: 80 | AW13: 100 | AX13: 0 | AY13: 121 | BA13: 0 | BC13: 0 | BG13: 411 | BN13: *Jamb Species not stock | BP13: *Casing Profile not stock | BQ13: *Casing width not stock | BS13: *Stop/Mull Profile not stock | BU13: *Not a stock color | CC13: - Invalid Line - | CH13: 0 | CI13: 0 | CJ13: 0 | CK13: 0 | CL13: 0 | CM13: 0 | CN13: 0 | CO13: 0 | CP13: 0
A14: 6 | D14: W | O14: - Invalid Line - | Q14: 0 | R14: =+Price_Matrix!T59 -> 0 | S14: =+Price_Matrix!T89 -> 0 | X14: 0 | AA14: 0 | AL14: 1 | AM14: 0 | AN14: 0 | AO14: 0 | AP14: 0 | AQ14: 0 | AR14: 40 | AS14: 0 | AT14: 70 | AU14: 80 | AW14: 100 | AX14: 0 | AY14: 121 | BA14: 0 | BC14: 0 | BG14: 411 | BN14: *Jamb Species not stock | BP14: *Casing Profile not stock | BQ14: *Casing width not stock | BS14: *Stop/Mull Profile not stock | BU14: *Not a stock color | CC14: - Invalid Line - | CH14: 0 | CI14: 0 | CJ14: 0 | CK14: 0 | CL14: 0 | CM14: 0 | CN14: 0 | CO14: 0 | CP14: 0
A15: 7 | D15: W | O15: - Invalid Line - | Q15: 0 | R15: =+Price_Matrix!T60 -> 0 | S15: =+Price_Matrix!T90 -> 0 | X15: 0 | AA15: 0 | AL15: 1 | AM15: 0 | AN15: 0 | AO15: 0 | AP15: 0 | AQ15: 0 | AR15: 40 | AS15: 0 | AT15: 70 | AU15: 80 | AW15: 100 | AX15: 0 | AY15: 121 | BA15: 0 | BC15: 0 | BG15: 411 | BN15: *Jamb Species not stock | BP15: *Casing Profile not stock | BQ15: *Casing width not stock | BS15: *Stop/Mull Profile not stock | BU15: *Not a stock color | CC15: - Invalid Line - | CH15: 0 | CI15: 0 | CJ15: 0 | CK15: 0 | CL15: 0 | CM15: 0 | CN15: 0 | CO15: 0 | CP15: 0
A16: 8 | D16: W | M16: =IF(M15="","",+M15) ->  | O16: - Invalid Line - | Q16: 0 | R16: =+Price_Matrix!T61 -> 0 | S16: =+Price_Matrix!T91 -> 0 | X16: 0 | AA16: 0 | AL16: 1 | AM16: 0 | AN16: 0 | AO16: 0 | AP16: 0 | AQ16: 0 | AR16: 40 | AS16: 0 | AT16: 70 | AU16: 80 | AW16: 100 | AX16: 0 | AY16: 121 | BA16: 0 | BC16: 0 | BG16: 411 | BN16: *Jamb Species not stock | BP16: *Casing Profile not stock | BQ16: *Casing width not stock | BS16: *Stop/Mull Profile not stock | BU16: *Not a stock color | CC16: - Invalid Line - | CH16: 0 | CI16: 0 | CJ16: 0 | CK16: 0 | CL16: 0 | CM16: 0 | CN16: 0 | CO16: 0 | CP16: 0
A17: 9 | D17: W | M17: =IF(M16="","",+M16) ->  | O17: - Invalid Line - | Q17: 0 | R17: =+Price_Matrix!T62 -> 0 | S17: =+Price_Matrix!T92 -> 0 | X17: 0 | AA17: 0 | AL17: 1 | AM17: 0 | AN17: 0 | AO17: 0 | AP17: 0 | AQ17: 0 | AR17: 40 | AS17: 0 | AT17: 70 | AU17: 80 | AW17: 100 | AX17: 0 | AY17: 121 | BA17: 0 | BC17: 0 | BG17: 411 | BN17: *Jamb Species not stock | BP17: *Casing Profile not stock | BQ17: *Casing width not stock | BS17: *Stop/Mull Profile not stock | BU17: *Not a stock color | CC17: - Invalid Line - | CH17: 0 | CI17: 0 | CJ17: 0 | CK17: 0 | CL17: 0 | CM17: 0 | CN17: 0 | CO17: 0 | CP17: 0
A18: 10 | D18: W | M18: =IF(M17="","",+M17) ->  | O18: - Invalid Line - | Q18: 0 | R18: =+Price_Matrix!T63 -> 0 | S18: =+Price_Matrix!T93 -> 0 | X18: 0 | AA18: 0 | AL18: 1 | AM18: 0 | AN18: 0 | AO18: 0 | AP18: 0 | AQ18: 0 | AR18: 40 | AS18: 0 | AT18: 70 | AU18: 80 | AW18: 100 | AX18: 0 | AY18: 121 | BA18: 0 | BC18: 0 | BG18: 411 | BN18: *Jamb Species not stock | BP18: *Casing Profile not stock | BQ18: *Casing width not stock | BS18: *Stop/Mull Profile not stock | BU18: *Not a stock color | CC18: - Invalid Line - | CH18: 0 | CI18: 0 | CJ18: 0 | CK18: 0 | CL18: 0 | CM18: 0 | CN18: 0 | CO18: 0 | CP18: 0
A19: 11 | D19: W | M19: =IF(M18="","",+M18) ->  | O19: - Invalid Line - | Q19: 0 | R19: =+Price_Matrix!T64 -> 0 | S19: =+Price_Matrix!T94 -> 0 | X19: 0 | AA19: 0 | AL19: 1 | AM19: 0 | AN19: 0 | AO19: 0 | AP19: 0 | AQ19: 0 | AR19: 40 | AS19: 0 | AT19: 70 | AU19: 80 | AW19: 100 | AX19: 0 | AY19: 121 | BA19: 0 | BC19: 0 | BG19: 411 | BN19: *Jamb Species not stock | BP19: *Casing Profile not stock | BQ19: *Casing width not stock | BS19: *Stop/Mull Profile not stock | BU19: *Not a stock color | CC19: - Invalid Line - | CH19: 0 | CI19: 0 | CJ19: 0 | CK19: 0 | CL19: 0 | CM19: 0 | CN19: 0 | CO19: 0 | CP19: 0
B20: Amount | C20: Length (Inches) | G20: Species | K20: Misc profile | M20: Color # | N20: Last 4 lines for Parts | Q20: Length (lft) | AA20: 0
A21: 1 | D21: P | M21: =+M19 ->  | O21: =+BZ21 ->  | Q21: =+B21*C21/12 -> 0 | X21: =SUM(R21:W21) -> 0 | AA21: 0 | AH21: =IF(J21=2.25,"R ",IF(J21=2.5,"W ",IF(J21=3.25,"EW",""))) ->  | AI21: =+CONCATENATE(I21,AH21) ->  | AL21: =IF(D21="P",1,"Error") -> 1 | AR21: =IF(G21="Oak",0,IF(G21="Maple",0,IF(G21="Poplar",0,40))) -> 40 | AS21: =IF(B21<>0,IF(H21=0,0,IF(H21<1,50, IF(H21>6.5,51,0))),0) -> 0 | AT21: =IF(I21=113,0,IF(I21=115,0,IF(I21=118,0,IF(I21="",0,70)))) -> 0 | AU21: =IF(I21=0,0,IF(J21=2.25,0,IF(J21=2.5,0,IF(J21=3.25,0,80)))) -> 0 | AW21: =IF(K21=0,0,IF(K21="006",0,IF(K21="007",0,IF(K21="009",0,IF(K21="011",0,IF(K21="001",0,100)))))) -> 0 | AY21: 121 | BA21: 0 | BG21: 161 | BN21: *Jamb Species not stock | BU21: *Not a stock color | BV21: =IF(AZ21=0,"",+AZ$4) ->  | CC21: =IF(B21<>"",+CONCATENATE(BI21,BJ21,BK21,BL21,BM21,BN21,BO21,BP21,BQ21,BS21,BT21,BU21,BV21,BW21,BX21,BY21,BZ21,CA21),"- Invalid Line -") -> - Invalid Line - | CI21: =+Q21 -> 0 | CJ21: =+E21+H21 -> 0 | CK21: =IF(CP21<>0,+CI21*$CK$7,0) -> 0 | CL21: =IF(CQ21<>0,+CI21*$CL$7,0) -> 0 | CM21: =+CI21*CJ21*$CM$7 -> 0 | CN21: =SUM(CK21:CM21) -> 0 | CP21: =+J21 -> 0 | CQ21: 0
A22: 2 | D22: P | M22: =IF(M21="","",+M21) ->  | O22: =+BZ22 ->  | Q22: =+B22*C22/12 -> 0 | X22: =SUM(R22:W22) -> 0 | AA22: 0 | AH22: =IF(J22=2.25,"R ",IF(J22=2.5,"W ",IF(J22=3.25,"EW",""))) ->  | AI22: =+CONCATENATE(I22,AH22) ->  | AL22: =IF(D22="P",1,"Error") -> 1 | AR22: =IF(G22="Oak",0,IF(G22="Maple",0,IF(G22="Poplar",0,40))) -> 40 | AS22: =IF(B22<>0,IF(H22=0,0,IF(H22<1,50, IF(H22>6.5,51,0))),0) -> 0 | AT22: =IF(I22=113,0,IF(I22=115,0,IF(I22=118,0,IF(I22="",0,70)))) -> 0 | AU22: =IF(I22=0,0,IF(J22=2.25,0,IF(J22=2.5,0,IF(J22=3.25,0,80)))) -> 0 | AW22: =IF(K22=0,0,IF(K22="006",0,IF(K22="007",0,IF(K22="009",0,IF(K22="011",0,IF(K22="001",0,100)))))) -> 0 | AY22: 121 | BA22: 0 | BG22: 161 | BN22: *Jamb Species not stock | BU22: *Not a stock color | CC22: =IF(B22<>"",+CONCATENATE(BI22,BJ22,BK22,BL22,BM22,BN22,BO22,BP22,BQ22,BS22,BT22,BU22,BV22,BW22,BX22,BY22,BZ22,CA22),"- Invalid Line -") -> - Invalid Line - | CI22: =+Q22 -> 0 | CJ22: =+E22+H22 -> 0 | CK22: 0 | CL22: =IF(CQ22<>0,+CI22*$CL$7,0) -> 0 | CM22: 0 | CN22: 0 | CP22: 0 | CQ22: 0
A23: 3 | D23: P | M23: =IF(M22="","",+M22) ->  | O23: =+BZ23 ->  | Q23: =+B23*C23/12 -> 0 | X23: =SUM(R23:W23) -> 0 | AA23: 0 | AH23: =IF(J23=2.25,"R ",IF(J23=2.5,"W ",IF(J23=3.25,"EW",""))) ->  | AI23: =+CONCATENATE(I23,AH23) ->  | AL23: =IF(D23="P",1,"Error") -> 1 | AR23: =IF(G23="Oak",0,IF(G23="Maple",0,IF(G23="Poplar",0,40))) -> 40 | AS23: =IF(B23<>0,IF(H23=0,0,IF(H23<1,50, IF(H23>6.5,51,0))),0) -> 0 | AT23: =IF(I23=113,0,IF(I23=115,0,IF(I23=118,0,IF(I23="",0,70)))) -> 0 | AU23: =IF(I23=0,0,IF(J23=2.25,0,IF(J23=2.5,0,IF(J23=3.25,0,80)))) -> 0 | AW23: =IF(K23=0,0,IF(K23="006",0,IF(K23="007",0,IF(K23="009",0,IF(K23="011",0,IF(K23="001",0,100)))))) -> 0 | AY23: 121 | BA23: 0 | BG23: 161 | BN23: *Jamb Species not stock | BU23: *Not a stock color | CC23: =IF(B23<>"",+CONCATENATE(BI23,BJ23,BK23,BL23,BM23,BN23,BO23,BP23,BQ23,BS23,BT23,BU23,BV23,BW23,BX23,BY23,BZ23,CA23),"- Invalid Line -") -> - Invalid Line - | CI23: =+Q23 -> 0 | CJ23: =+E23+H23 -> 0 | CK23: 0 | CL23: =IF(CQ23<>0,+CI23*$CL$7,0) -> 0 | CM23: 0 | CN23: 0 | CP23: 0 | CQ23: 0
A24: 4 | D24: P | M24: =IF(M23="","",+M23) ->  | O24: =+BZ24 ->  | Q24: =+B24*C24/12 -> 0 | X24: =SUM(R24:W24) -> 0 | AA24: 0 | AH24: =IF(J24=2.25,"R ",IF(J24=2.5,"W ",IF(J24=3.25,"EW",""))) ->  | AI24: =+CONCATENATE(I24,AH24) ->  | AL24: =IF(D24="P",1,"Error") -> 1 | AR24: =IF(G24="Oak",0,IF(G24="Maple",0,IF(G24="Poplar",0,40))) -> 40 | AS24: =IF(B24<>0,IF(H24=0,0,IF(H24<1,50, IF(H24>6.5,51,0))),0) -> 0 | AT24: =IF(I24=113,0,IF(I24=115,0,IF(I24=118,0,IF(I24="",0,70)))) -> 0 | AU24: =IF(I24=0,0,IF(J24=2.25,0,IF(J24=2.5,0,IF(J24=3.25,0,80)))) -> 0 | AW24: =IF(K24=0,0,IF(K24="006",0,IF(K24="007",0,IF(K24="009",0,IF(K24="011",0,IF(K24="001",0,100)))))) -> 0 | AY24: 121 | BA24: 0 | BG24: 161 | BN24: *Jamb Species not stock | BU24: *Not a stock color | CC24: =IF(B24<>"",+CONCATENATE(BI24,BJ24,BK24,BL24,BM24,BN24,BO24,BP24,BQ24,BS24,BT24,BU24,BV24,BW24,BX24,BY24,BZ24,CA24),"- Invalid Line -") -> - Invalid Line - | CI24: =+Q24 -> 0 | CJ24: =+E24+H24 -> 0 | CK24: 0 | CL24: =IF(CQ24<>0,+CI24*$CL$7,0) -> 0 | CM24: 0 | CN24: 0 | CP24: 0 | CQ24: 0
K25: ff | CC25: =+CONCATENATE(BI25,BJ25,BK25,BL25,BM25,BN25,BO25,BP25,BQ25,BS25,BT25,BU25,BV25,BW25,BX25,BY25,BZ25,CA25) -> 
E26: Type is (W)indow, (D)oor, (S)tool, (H)eader, (O)ctagon, or (C)ustom | K26: * - also accepts "001" for WDSH-001 | Q26: =SUM(Q9:Q25) -> 0 | R26: =SUM(R9:R25) -> 0 | S26: =SUM(S9:S25) -> 0 | T26: 0 | U26: 0 | V26: 0 | W26: 0 | X26: =SUM(X9:X25) -> 0 | AA26: =SUM(AA9:AA25) -> 0
A27: Orders in by 2:00 PM | L27: Other Special Comments
A28: Lead Times (Expedited): | F28: Rush Charges: | Q28: Confirmation Information
A29: 3 Days for pick & pull parts | F29: 2 Day = 75% Up Charge | H29: 1 Day = 100% up charge | Q29: Customer Acceptance Signature: ________________________
A30: 5 Days for finished windows using stock parts | F30: n/a | H30: n/a | Q30: Fax to: (651) 464-6191 | W30: Date: ______________
A31: 7 Days for finished windows with custom parts | F31: n/a | H31: n/a | Q31: or Email: CustomerService@WDICustomWood.com
C32: 12 | Q32: THIS ORDER WILL BE ENTERED INTO WDI PRODUCTION
A33: =+Revisions!A34 -> v2302Feb - Mfg | C33: =+AF3 -> 0.515 | D33: =+AF2 -> W | Q33: SCHEDULE ON RECEIPT OF SIGNED CONFIRMATION
A38: =+A8 -> 1 | B38: =+B8 -> 2 | C38: =+C8 -> 3 | G38: =+G8 -> 4 | H38: 5 | I38: 6 | J38: 8 | K38: 9 | L38: 0 | M38: 10 | N38: 11 | O38: 0 | P38: 12 | Q38: 13 | R38: 14 | S38: 0 | T38: 0 | U38: 0 | V38: 0 | W38: 16 | X38: 17 | Y38: 0 | Z38: 0 | AA38: 16 | AB38: 0 | AC38: 19 | AD38: 20 | AE38: 0 | AF38: 0 | AG38: 0 | AH38: 8 | AI38: 6 | AJ38: 0 | AK38: 0 | AL38: 0 | AM38: 0 | AN38: 0
W39: $$/U.I: | X39: =+X40/6 -> 
G40: Stool calls out stool vs bottom casing | W40: $$/lft: | X40: =+X26/Q41 -> 
G41: Door eliminates bottom jamb & casing | Q41: =+Q26/6 -> 0 | R41: lft pricing | W41: $$/Window | X41: =+X26/I5 -> 0
G42: Header calls out 3 sides of casing & cut to same reveal | W42: lft/Window | X42: =+Q41/I5 -> 0
G43: Round calls out amounts at zero -> custom calculations
W44: =+#REF! ->  | X44: =+#REF! -> 
W45: =+#REF! ->  | X45: =+#REF! -> 
W46: =+#REF! ->  | X46: =+#REF! -> 

Sheet OSC_Calcs
A1: WDI Company - Window Box Order Form | G1: CALCULATIONS FOR OUTSIDE OF CASING / BOX SIZE | AX1: Window OSC = OSC | AY1: Door OSC = OSC | AZ1: Window OSC = OSC
B2: Job Name: | C2: =+#REF! ->  | M2: Enter in green areas only | AX2: -2 x casing | AY2: -1 x casing | AZ2: -1 x casing
B3: CRI PO #: | C3: =+#REF! ->  | N3: H=Header | AX3: -2 x reveal | AY3: -1 x reveal | AZ3: -1 x reveal
B4: Ordered By: | C4: =+#REF! ->  | AX4: +2 x jamb (5/8") | AY4: +1 x jamb (5/8") | AZ4: +1 x jamb (5/8")
B5: WDI Job # | C5: =+#REF! ->  | M5: Outside of Casing | AX5: = NET BOX | AY5: = NET BOX | AZ5: = NET BOX
B6: Box Size (O.D.) | D6: Type | E6: Jamb | F6: Jamb Depth | G6: Profile # | H6: Casing | I6: Casing | J6: Stop/Mull | K6: Casing | L6: Notes | N6: W | O6: D | P6: S | AY6: No Dado | AZ6: Dado bottom, check apron, mfg stool
A7: # | B7: Width | C7: Height | E7: Species | F7: From I.S of Window | G7: (WDI #113, #115, #118, etc.) | H7: Species | I7: Width | J7: Profile # | K7: Color | L7: Descriptions | M7: Width | N7: Height - Standard Window | O7: Height - Door - OSC to floor | P7: Height - OSC to bottom of stool | AU7: Reveal | AX7: =+N6 -> W | AY7: =+O6 -> D | AZ7: =+P6 -> S
A8: 1 | B8: 2 | C8: 3 | E8: 4 | F8: 5 | G8: 6 | H8: 7 | I8: 8 | J8: 9 | K8: 10 | L8: 11 | M8: 2 | N8: 3 | Q8: 12 | R8: 18 | S8: 19 | AS8: 20
A9: 1 | B9: =IF(+I9=0,"",+M9-2*I9-0.375+1.25) -> 20.375 | C9: =IF(I9="","",IF(+D9="W",+AX9,+IF(+D9="D",+AY9,+IF(+D9="S",+AZ9,"Err")))) -> 57.375 | D9: W | I9: 3.25 | M9: 26 | N9: 63 | AU9: =3/16 -> 0.1875 | AX9: =+N9-(2*I9)-(2*AU9)+(2*0.625) -> 57.375 | AY9: =+O9-I9-AU9+0.625 -> -2.8125 | AZ9: =+P9-I9-AU9+0.625 -> -2.8125
A10: 2 | B10: =IF(+I10=0,"",+M10-2*I10-0.375+1.25) ->  | C10: =IF(I10="","",IF(+D10="W",+AX10,+IF(+D10="D",+AY10,+IF(+D10="S",+AZ10,"Err")))) ->  | D10: W | AU10: =+AU9 -> 0.1875 | AX10: =+N10-(2*I10)-(2*AU10)+(2*0.625) -> 0.875 | AY10: =+O10-I10-AU10+0.625 -> 0.4375 | AZ10: =+P10-I10-AU10+0.625 -> 0.4375
A11: 3 | D11: W | AU11: =+AU10 -> 0.1875 | AX11: 0.875 | AY11: 0.4375 | AZ11: 0.4375
A12: 4 | D12: S | AU12: 0.1875 | AX12: 0.875 | AY12: 0.4375 | AZ12: 0.4375
A13: 5 | D13: W | AU13: 0.1875 | AX13: 0.875 | AY13: 0.4375 | AZ13: 0.4375
A14: 6 | D14: W | AU14: 0.1875 | AX14: 0.875 | AY14: 0.4375 | AZ14: 0.4375
A15: 7 | D15: W | AU15: 0.1875 | AX15: 0.875 | AY15: 0.4375 | AZ15: 0.4375
A16: 8 | D16: W | AU16: 0.1875 | AX16: 0.875 | AY16: 0.4375 | AZ16: 0.4375
A17: 9 | D17: W | AU17: 0.1875 | AX17: 0.875 | AY17: 0.4375 | AZ17: 0.4375
A18: 10 | B18: =IF(+I18=0,"",+M18-2*I18-0.375+1.25) ->  | C18: =IF(I18="","",IF(+D18="W",+AX18,+IF(+D18="D",+AY18,+IF(+D18="S",+AZ18,"Err")))) ->  | D18: W | AU18: =+AU17 -> 0.1875 | AX18: =+N18-(2*I18)-(2*AU18)+(2*0.625) -> 0.875 | AY18: =+O18-I18-AU18+0.625 -> 0.4375 | AZ18: =+P18-I18-AU18+0.625 -> 0.4375
A19: 11 | D19: W | AU19: 0.1875 | AX19: 0.875 | AY19: 0.4375 | AZ19: 0.4375
A20: 12 | D20: W | AU20: 0.1875 | AX20: 0.875 | AY20: 0.4375 | AZ20: 0.4375
A21: 13 | D21: W | AU21: 0.1875 | AX21: 0.875 | AY21: 0.4375 | AZ21: 0.4375
A22: 14 | D22: W | AU22: 0.1875 | AX22: 0.875 | AY22: 0.4375 | AZ22: 0.4375
A23: 15 | D23: W | AU23: 0.1875 | AX23: 0.875 | AY23: 0.4375 | AZ23: 0.4375
D24: =+#REF! -> 
E28: Stool calls out stool vs bottom casing
E29: Door eliminates bottom jamb & casing
E30: Header calls out 3 sides of casing & cut to same reveal
E31: Round calls out amounts at zero -> custom calculations

Sheet Octagon_Template
A1: Calculations for Octagon Windows | E1: Job Name: | F1: =+WDI_Standard_Order_Form!C2 -> 0 | I1: Ordered By: | J1: =+WDI_Standard_Order_Form!C4 -> 0 | X1: WDI Company - Window Box Order Form
E2: PO #: | F2: =+WDI_Standard_Order_Form!C3 -> 0 | I2: WDI Job # | J2: =+WDI_Standard_Order_Form!C5 -> 0
B3: Fill in the green shaded area: | Y3: Job Name: | Z3: =+WDI_Standard_Order_Form!C2 -> 0
G4: Cut Angle is 22.5o | Y4: PO #: | Z4: =+WDI_Standard_Order_Form!C3 -> 0 | AN4: Box | AP4: Jamb Width | AQ4: Jamb Height | AS4: Thickness | AY4: Diameter | AZ4: Casing Width | BA4: Casing Height | BB4: Stop Width | BC4: Stop Height | BI4: Segment | BK4: PI= | BL4: =PI() -> 3.141592654
B5: Information | C5: Key from chart @ right | Y5: Ordered By: | Z5: =+WDI_Standard_Order_Form!C4 -> 0 | AI5: Calcs: | AJ5: OS Box Width | AK5: OS Box Height | AL5: Casing width | AN5: DIAMETER | AO5: MAX | AP5: SEGMENT LENGTH | AQ5: SEGMENT LENGTH | AS5: Jambs x 2 | AT5: IS Box | AU5: Reveal x 2: | AV5: IS Casing Width | AW5: IS Casing Height | AX5: Casing x 2: | AY5: OS Casing | AZ5: SEGMENT LENGTH | BA5: SEGMENT LENGTH | BB5: SEGMENT LENGTH | BC5: SEGMENT LENGTH | BE5: Radius | BF5: Circum. | BG5: # pcs | BI5: Lengths
B6: Outside of Octagon box (A): | C6: =+AJ9 -> 0 | Y6: WDI Job # | Z6: =+WDI_Standard_Order_Form!C5 -> 0 | BK6: Radians of 22.5o | BL6: =RADIANS(22.5) -> 0.3926990817 | BM6: for octagonal cuts
B7: Outside of Long side Octagon box (B): | C7: =+AK9 -> 0 | D7: =+C7-C6 -> 0 | Y7: Box Size (O.D.) | AA7: Opening Type | AB7: Casing | BK7: COS(22.5) | BL7: =COS(BL6) -> 0.9238795325
B8: Casing Width: | C8: =+AB9 -> 0 | X8: # | Y8: Width | Z8: Height | AB8: Width
X9: =+WDI_Standard_Order_Form!A9 -> 1 | Y9: =+WDI_Standard_Order_Form!B9 -> 0 | Z9: =+WDI_Standard_Order_Form!C9 -> 0 | AA9: =+WDI_Standard_Order_Form!D9 -> W | AB9: =+WDI_Standard_Order_Form!J9 -> 0 | AI9: Line 1a | AJ9: =+Y9 -> 0 | AK9: =+Z9 -> 0 | AL9: =+AB9 -> 0 | AN9: =+AJ9 -> 0 | AO9: =SQRT((AP9/2)^2+BE9^2)*2 -> 0 | AP9: =+(AN9/2)*$BL$11*2 -> 0 | AQ9: =+(AK9-AJ9)+AP9 -> 0 | AS9: =-$C$24*2 -> -1.25 | AT9: =+AS9+AJ9 -> -1.25 | AU9: =+$C$25*2 -> 0.375 | AV9: =+AU9+AT9 -> -0.875 | AW9: =+AK9-AJ9+AV9 -> -0.875 | AX9: =+AL9*2 -> 0 | AY9: =+AX9+AV9 -> -0.875 | AZ9: =+(AY9/2)*$BL$11*2 -> -0.3624368671 | BA9: =+AK9-AJ9+AZ9 -> -0.3624368671 | BB9: =+(AT9/2)*$BL$11*2 -> -0.517766953 | BC9: =+AK9-AJ9+BB9 -> -0.517766953 | BE9: =+AN9/2 -> 0 | BF9: =++AN9*$BL$4 -> 0 | BG9: 6 | BK9: SIN(22.5) | BL9: =SIN(BL6) -> 0.3826834324
X10: =+WDI_Standard_Order_Form!A10 -> 2 | Y10: =+WDI_Standard_Order_Form!B10 -> 0 | Z10: =+WDI_Standard_Order_Form!C10 -> 0 | AA10: =+WDI_Standard_Order_Form!D10 -> W | AB10: =+WDI_Standard_Order_Form!J10 -> 0 | AI10: Line 2a | AJ10: 0 | AK10: 0 | AL10: =+WDI_Standard_Order_Form!J10 -> 0 | AN10: =+AJ10 -> 0 | AO10: =SQRT((AP10/2)^2+BE10^2)*2 -> 0 | AP10: 0 | AQ10: 0 | AS10: =-$C$24*2 -> -1.25 | AT10: =+AS10+AJ10 -> -1.25 | AU10: =+$C$25*2 -> 0.375 | AV10: =+AU10+AT10 -> -0.875 | AW10: -0.875 | AX10: 0 | AY10: =+AX10+AV10 -> -0.875 | AZ10: -0.3624368671 | BA10: -0.3624368671 | BB10: -0.517766953 | BC10: -0.517766953 | BE10: =+AN10/2 -> 0 | BF10: =++AN10*$BL$4 -> 0 | BG10: 6
X11: =+WDI_Standard_Order_Form!A11 -> 3 | Y11: 23 | Z11: =+Z10+0.5 -> 0.5 | AA11: =+AA10 -> W | AB11: 2.5 | AI11: Line 3a | AJ11: 23 | AK11: 0.5 | AL11: =+AB11 -> 2.5 | AN11: 23 | AO11: 24.89502061 | AP11: 9.526911935 | AQ11: -12.97308807 | AS11: -1.25 | AT11: 21.75 | AU11: 0.375 | AV11: =+AU11+AT11 -> 22.125 | AW11: -0.375 | AX11: 5 | AY11: 27.125 | AZ11: 11.23554288 | BA11: -11.26445712 | BB11: 9.009144982 | BC11: -13.49085502 | BE11: 11.5 | BF11: 72.25663103 | BG11: 6 | BK11: TAN(22.5) | BL11: =TAN(BL6) -> 0.4142135624
X12: =+WDI_Standard_Order_Form!A12 -> 4 | Y12: 24 | Z12: =+Z11+0.5 -> 1 | AA12: =+AA11 -> W | AB12: =+AB11 -> 2.5 | AI12: Line 4a | AJ12: 24 | AK12: 1 | AL12: 2.5 | AN12: 24 | AO12: 25.97741281 | AP12: 9.941125497 | AQ12: -13.0588745 | AS12: -1.25 | AT12: 22.75 | AU12: 0.375 | AV12: 23.125 | AW12: 0.125 | AX12: 5 | AY12: 28.125 | AZ12: 11.64975644 | BA12: -11.35024356 | BB12: 9.423358544 | BC12: -13.57664146 | BE12: 12 | BF12: 75.39822369 | BG12: 6
X13: =+WDI_Standard_Order_Form!A13 -> 5 | Y13: 25 | Z13: 1.5 | AA13: W | AB13: =+AB12 -> 2.5 | AI13: Line 5a | AJ13: 25 | AK13: 1.5 | AL13: 2.5 | AN13: 25 | AO13: 27.05980501 | AP13: 10.35533906 | AQ13: -13.14466094 | AS13: -1.25 | AT13: 23.75 | AU13: 0.375 | AV13: 24.125 | AW13: 0.625 | AX13: 5 | AY13: 29.125 | AZ13: 12.06397 | BA13: -11.43603 | BB13: 9.837572106 | BC13: -13.66242789 | BE13: 12.5 | BF13: 78.53981634 | BG13: 6 | BK13: COS = Adj / Hyp
B14: Jamb length (tip to tip): | C14: =+AP9 -> 0 | X14: =+WDI_Standard_Order_Form!A14 -> 6 | Y14: 25.5 | Z14: 2 | AA14: W | AB14: 2.5 | AI14: Line 6a | AJ14: 25.5 | AK14: 2 | AL14: 2.5 | AN14: 25.5 | AO14: 27.60100111 | AP14: 10.56244584 | AQ14: -12.93755416 | AS14: -1.25 | AT14: 24.25 | AU14: 0.375 | AV14: 24.625 | AW14: 1.125 | AX14: 5 | AY14: 29.625 | AZ14: 12.27107679 | BA14: -11.22892321 | BB14: 10.04467889 | BC14: -13.45532111 | BE14: 12.75 | BF14: 80.11061267 | BG14: 6 | BK14: TAN = OP / Adj
B15: casing length (tip to tip): | C15: =+AZ9 -> -0.3624368671 | X15: =+WDI_Standard_Order_Form!A15 -> 7 | Y15: 26 | Z15: 2.5 | AA15: W | AB15: 2.5 | AI15: Line 7a | AJ15: 26 | AK15: 2.5 | AL15: 2.5 | AN15: 26 | AO15: 28.14219721 | AP15: 10.76955262 | AQ15: -12.73044738 | AS15: -1.25 | AT15: 24.75 | AU15: 0.375 | AV15: 25.125 | AW15: 1.625 | AX15: 5 | AY15: 30.125 | AZ15: 12.47818357 | BA15: -11.02181643 | BB15: 10.25178567 | BC15: -13.24821433 | BE15: 13 | BF15: 81.68140899 | BG15: 6 | BK15: SIN = OP/Hyp
B16: Stop length (tip to tip): | C16: =+BB9 -> -0.517766953 | X16: =+WDI_Standard_Order_Form!A16 -> 8 | Y16: 26.5 | Z16: 3 | AA16: W | AB16: 2.5 | AI16: Line 8a | AJ16: 26.5 | AK16: 3 | AL16: 2.5 | AN16: 26.5 | AO16: 28.68339331 | AP16: 10.9766594 | AQ16: -12.5233406 | AS16: -1.25 | AT16: 25.25 | AU16: 0.375 | AV16: 25.625 | AW16: 2.125 | AX16: 5 | AY16: 30.625 | AZ16: 12.68529035 | BA16: -10.81470965 | BB16: 10.45889245 | BC16: -13.04110755 | BE16: 13.25 | BF16: 83.25220532 | BG16: 6
X17: =+WDI_Standard_Order_Form!A17 -> 9 | Y17: 27 | Z17: 3.5 | AA17: W | AB17: 2.5 | AI17: Line 9a | AJ17: 27 | AK17: 3.5 | AL17: 2.5 | AN17: 27 | AO17: 29.22458941 | AP17: 11.18376618 | AQ17: -12.31623382 | AS17: -1.25 | AT17: 25.75 | AU17: 0.375 | AV17: 26.125 | AW17: 2.625 | AX17: 5 | AY17: 31.125 | AZ17: 12.89239713 | BA17: -10.60760287 | BB17: 10.66599923 | BC17: -12.83400077 | BE17: 13.5 | BF17: 84.82300165 | BG17: 6
B18: Long side jamb length (pt to pt): | C18: =+C14+$D$7 -> 0 | X18: =+WDI_Standard_Order_Form!A18 -> 10 | Y18: 27.5 | Z18: 4 | AA18: W | AB18: 2.5 | AI18: Line 10a | AJ18: 27.5 | AK18: 4 | AL18: 2.5 | AN18: 27.5 | AO18: 29.76578551 | AP18: 11.39087297 | AQ18: -12.10912703 | AS18: -1.25 | AT18: 26.25 | AU18: 0.375 | AV18: 26.625 | AW18: 3.125 | AX18: 5 | AY18: 31.625 | AZ18: 13.09950391 | BA18: -10.40049609 | BB18: 10.87310601 | BC18: -12.62689399 | BE18: 13.75 | BF18: 86.39379797 | BG18: 6
B19: Long side casing length (pt to pt): | C19: =+C15+$D$7 -> -0.3624368671 | X19: =+WDI_Standard_Order_Form!A19 -> 11 | Y19: 27.5 | Z19: 4.5 | AA19: W | AB19: 2.5 | AI19: Line 11a | AJ19: 27.5 | AK19: 4.5 | AL19: 2.5 | AN19: 27.5 | AO19: 29.76578551 | AP19: 11.39087297 | AQ19: -11.60912703 | AS19: -1.25 | AT19: 26.25 | AU19: 0.375 | AV19: 26.625 | AW19: 3.625 | AX19: 5 | AY19: 31.625 | AZ19: 13.09950391 | BA19: -9.90049609 | BB19: 10.87310601 | BC19: -12.12689399 | BE19: 13.75 | BF19: 86.39379797 | BG19: 6
B20: Long side stop length (pt to pt): | C20: =+C16+$D$7 -> -0.517766953 | X20: =+WDI_Standard_Order_Form!A21 -> 1 | Y20: =+WDI_Standard_Order_Form!B21 -> 0 | Z20: =+WDI_Standard_Order_Form!C21 -> 0 | AA20: =+WDI_Standard_Order_Form!D21 -> P | AB20: =+WDI_Standard_Order_Form!J21 -> 0
X21: =+WDI_Standard_Order_Form!A22 -> 2 | Y21: =+WDI_Standard_Order_Form!B22 -> 0 | Z21: =+WDI_Standard_Order_Form!C22 -> 0 | AA21: =+WDI_Standard_Order_Form!D22 -> P | AB21: =+WDI_Standard_Order_Form!J22 -> 0
X22: =+WDI_Standard_Order_Form!A23 -> 3 | Y22: =+WDI_Standard_Order_Form!B23 -> 0 | Z22: =+WDI_Standard_Order_Form!C23 -> 0 | AA22: =+WDI_Standard_Order_Form!D23 -> P | AB22: =+WDI_Standard_Order_Form!J23 -> 0
X23: =+WDI_Standard_Order_Form!A24 -> 4 | Y23: =+WDI_Standard_Order_Form!B24 -> 0 | Z23: =+WDI_Standard_Order_Form!C24 -> 0 | AA23: =+WDI_Standard_Order_Form!D24 -> P | AB23: =+WDI_Standard_Order_Form!J24 -> 0
B24: Jamb thickness: | C24: 0.625
B25: Casing Reveal: | C25: 0.1875
B27: Cut @ 22.5 degree angle to Outside of casing length
D29: =SUM(D14:D28) -> 0
D30: =+D29/12 -> 0

Sheet Stool_Template
A1: WDI Company - Window Box Stool template

Sheet Round_top_Template
A1: WDI Company - Window Round Top template

Sheet Round_top_Template_Extended
A1: WDI Company - Window Extended Round Top template

Sheet Trapezoid_Template
A1: Trapezoid Calcs
Y2: Length | Z2: Angle | AA2: Angle | AB2: Hyp | AC2: Less Jamb
Y3: E | Z3: e | AA3: f | AB3: Length | AC3: Length
Y4: =+D4-B4 -> 0 | Z4: =DEGREES(ATAN(Y4/C4)) ->  | AA4: =90-Z4 ->  | AB4: =+SQRT(C4*C4+Y4*Y4) -> 0
B8: Cut top - glue & screw together

Sheet Price_Matrix
A1: 2023-01-20 | C1: Feb '23 Window Pricing Effect: 2/5/23
C2: Unit Inches | D2: 0 | E2: =+D3 -> 36 | F2: =+E3 -> 48 | G2: 60 | H2: 72 | I2: 84 | J2: 96 | K2: 108 | L2: 120 | M2: 132 | N2: 144 | O2: 156 | P2: 168
C3: Unit Inches | D3: 36 | E3: 48 | F3: 60 | G3: 72 | H3: 84 | I3: 96 | J3: 108 | K3: 120 | L3: 132 | M3: 144 | N3: 156 | O3: 168 | P3: 5000
B4: Window | C4: 2/5/23 CRI Price | D4: 93.68 | E4: 97.42 | F4: 101.33 | G4: 108.8 | H4: 125.4 | I4: 136.87 | J4: 152.01 | K4: 166.95 | L4: 181.53 | M4: 195.51 | N4: 209.25 | O4: 222.61 | P4: 1.52 | R4: Effective with orders placed on or after 1/1/22
B5: Window | C5: 2/5/23 WDI Price | D5: 189.62 | E5: 193.1 | F5: 200.51 | G5: 231.5 | H5: 267.03 | I5: 288.61 | J5: 324.04 | K5: 355.64 | L5: 386.48 | M5: 416.56 | N5: 445.92 | O5: 474.19 | P5: 2.88 | R5: Effective with orders placed on or after 1/1/22
B6: Stop | C6: 2/5/23 CRI Price 1.25" | D6: 0.16 | E6: =+D6 -> 0.16 | F6: =+E6 -> 0.16 | G6: 0.16 | H6: 0.16 | I6: 0.16 | J6: 0.16 | K6: 0.16 | L6: 0.16 | M6: 0.16 | N6: 0.16 | O6: 0.16 | P6: 0.16
C7: 2/5/23 CRI Price 2" | D7: 0.22 | E7: =+D7 -> 0.22 | F7: 0.22 | G7: 0.22 | H7: 0.22 | I7: 0.22 | J7: 0.22 | K7: 0.22 | L7: 0.22 | M7: 0.22 | N7: 0.22 | O7: 0.22 | P7: 0.22
C8: 2/5/23 CRI Price 3" | D8: 0.46 | E8: =+D8 -> 0.46 | F8: 0.46 | G8: 0.46 | H8: 0.46 | I8: 0.46 | J8: 0.46 | K8: 0.46 | L8: 0.46 | M8: 0.46 | N8: 0.46 | O8: 0.46 | P8: 0.46
B9: Stop | C9: 2/5/23 WDI Price 1.25" | D9: 0.3 | E9: =+D9 -> 0.3 | F9: 0.3 | G9: 0.3 | H9: 0.3 | I9: 0.3 | J9: 0.3 | K9: 0.3 | L9: 0.3 | M9: 0.3 | N9: 0.3 | O9: 0.3 | P9: 0.3
C10: 2/5/23 WDI Price 2" | D10: 0.42 | E10: =+D10 -> 0.42 | F10: 0.42 | G10: 0.42 | H10: 0.42 | I10: 0.42 | J10: 0.42 | K10: 0.42 | L10: 0.42 | M10: 0.42 | N10: 0.42 | O10: 0.42 | P10: 0.42
C11: 2/5/23 WDI Price 3" | D11: 0.78 | E11: =+D11 -> 0.78 | F11: 0.78 | G11: 0.78 | H11: 0.78 | I11: 0.78 | J11: 0.78 | K11: 0.78 | L11: 0.78 | M11: 0.78 | N11: 0.78 | O11: 0.78 | P11: 0.78
B13: Line | C13: Size
B14: 1 | C14: Round up to Integer: | D14: =IF(+$C54>+INT($C54),INT(+$C54+1),+$C54) -> 0 | E14: 0 | F14: 0 | G14: 0 | H14: 0 | I14: 0 | J14: 0 | K14: 0 | L14: 0 | M14: 0 | N14: 0 | O14: 0 | P14: 0
B15: 2 | C15: Round up to Integer: | D15: =IF(+$C55>+INT($C55),INT(+$C55+1),+$C55) -> 0 | E15: 0 | F15: 0 | G15: 0 | H15: 0 | I15: 0 | J15: 0 | K15: 0 | L15: 0 | M15: 0 | N15: 0 | O15: 0 | P15: 0
B16: 3 | C16: Round up to Integer: | D16: =IF(+$C56>+INT($C56),INT(+$C56+1),+$C56) -> 0 | E16: 0 | F16: 0 | G16: 0 | H16: 0 | I16: 0 | J16: 0 | K16: 0 | L16: 0 | M16: 0 | N16: 0 | O16: 0 | P16: 0
B17: 4 | C17: Round up to Integer: | D17: =IF(+$C57>+INT($C57),INT(+$C57+1),+$C57) -> 0 | E17: 0 | F17: 0 | G17: 0 | H17: 0 | I17: 0 | J17: 0 | K17: 0 | L17: 0 | M17: 0 | N17: 0 | O17: 0 | P17: 0
B18: 5 | C18: Round up to Integer: | D18: =IF(+$C58>+INT($C58),INT(+$C58+1),+$C58) -> 0 | E18: 0 | F18: 0 | G18: 0 | H18: 0 | I18: 0 | J18: 0 | K18: 0 | L18: 0 | M18: 0 | N18: 0 | O18: 0 | P18: 0
B19: 6 | C19: Round up to Integer: | D19: =IF(+$C59>+INT($C59),INT(+$C59+1),+$C59) -> 0 | E19: 0 | F19: 0 | G19: 0 | H19: 0 | I19: 0 | J19: 0 | K19: 0 | L19: 0 | M19: 0 | N19: 0 | O19: 0 | P19: 0
B20: 7 | C20: Round up to Integer: | D20: =IF(+$C60>+INT($C60),INT(+$C60+1),+$C60) -> 0 | E20: 0 | F20: 0 | G20: 0 | H20: 0 | I20: 0 | J20: 0 | K20: 0 | L20: 0 | M20: 0 | N20: 0 | O20: 0 | P20: 0
B21: 8 | C21: Round up to Integer: | D21: =IF(+$C61>+INT($C61),INT(+$C61+1),+$C61) -> 0 | E21: 0 | F21: 0 | G21: 0 | H21: 0 | I21: 0 | J21: 0 | K21: 0 | L21: 0 | M21: 0 | N21: 0 | O21: 0 | P21: 0
B22: 9 | C22: Round up to Integer: | D22: =IF(+$C62>+INT($C62),INT(+$C62+1),+$C62) -> 0 | E22: 0 | F22: 0 | G22: 0 | H22: 0 | I22: 0 | J22: 0 | K22: 0 | L22: 0 | M22: 0 | N22: 0 | O22: 0 | P22: 0
B23: 10 | C23: Round up to Integer: | D23: =IF(+$C63>+INT($C63),INT(+$C63+1),+$C63) -> 0 | E23: 0 | F23: 0 | G23: 0 | H23: 0 | I23: 0 | J23: 0 | K23: 0 | L23: 0 | M23: 0 | N23: 0 | O23: 0 | P23: 0
B24: 11 | C24: Round up to Integer: | D24: =IF(+$C64>+INT($C64),INT(+$C64+1),+$C64) -> 0 | E24: 0 | F24: 0 | G24: 0 | H24: 0 | I24: 0 | J24: 0 | K24: 0 | L24: 0 | M24: 0 | N24: 0 | O24: 0 | P24: 0
B27: Line | C27: Size
B28: 1 | C28: Stop length: | D28: =+D14 -> 0 | E28: =+E14 -> 0 | F28: 0 | G28: 0 | H28: 0 | I28: 0 | J28: 0 | K28: 0 | L28: 0 | M28: 0 | N28: 0 | O28: 0 | P28: 0
B29: 2 | C29: Integer: | D29: =+D15 -> 0 | E29: 0 | F29: 0 | G29: 0 | H29: 0 | I29: 0 | J29: 0 | K29: 0 | L29: 0 | M29: 0 | N29: 0 | O29: 0 | P29: 0
B30: 3 | C30: Integer: | D30: =+D16 -> 0 | E30: 0 | F30: 0 | G30: 0 | H30: 0 | I30: 0 | J30: 0 | K30: 0 | L30: 0 | M30: 0 | N30: 0 | O30: 0 | P30: 0
B31: 4 | C31: Integer: | D31: =+D17 -> 0 | E31: 0 | F31: 0 | G31: 0 | H31: 0 | I31: 0 | J31: 0 | K31: 0 | L31: 0 | M31: 0 | N31: 0 | O31: 0 | P31: 0
B32: 5 | C32: Integer: | D32: =+D18 -> 0 | E32: 0 | F32: 0 | G32: 0 | H32: 0 | I32: 0 | J32: 0 | K32: 0 | L32: 0 | M32: 0 | N32: 0 | O32: 0 | P32: 0
B33: 6 | C33: Integer: | D33: =+D19 -> 0 | E33: 0 | F33: 0 | G33: 0 | H33: 0 | I33: 0 | J33: 0 | K33: 0 | L33: 0 | M33: 0 | N33: 0 | O33: 0 | P33: 0
B34: 7 | C34: Integer: | D34: =+D20 -> 0 | E34: 0 | F34: 0 | G34: 0 | H34: 0 | I34: 0 | J34: 0 | K34: 0 | L34: 0 | M34: 0 | N34: 0 | O34: 0 | P34: 0
B35: 8 | C35: Integer: | D35: =+D21 -> 0 | E35: 0 | F35: 0 | G35: 0 | H35: 0 | I35: 0 | J35: 0 | K35: 0 | L35: 0 | M35: 0 | N35: 0 | O35: 0 | P35: 0
B36: 9 | C36: Integer: | D36: =+D22 -> 0 | E36: 0 | F36: 0 | G36: 0 | H36: 0 | I36: 0 | J36: 0 | K36: 0 | L36: 0 | M36: 0 | N36: 0 | O36: 0 | P36: 0
B37: 10 | C37: Integer: | D37: =+D23 -> 0 | E37: 0 | F37: 0 | G37: 0 | H37: 0 | I37: 0 | J37: 0 | K37: 0 | L37: 0 | M37: 0 | N37: 0 | O37: 0 | P37: 0
B38: 11 | C38: Integer: | D38: =+D24 -> 0 | E38: 0 | F38: 0 | G38: 0 | H38: 0 | I38: 0 | J38: 0 | K38: 0 | L38: 0 | M38: 0 | N38: 0 | O38: 0 | P38: 0
C40: WTK size category
B41: 1 | C41: True/False | D41: =IF(D14>D$2,IF(D14<=D$3,1,0),0) -> 0 | E41: 0 | F41: 0 | G41: 0 | H41: 0 | I41: 0 | J41: 0 | K41: 0 | L41: 0 | M41: 0 | N41: 0 | O41: 0 | P41: 0
B42: 2 | C42: True/False | D42: =IF(D15>D$2,IF(D15<=D$3,1,0),0) -> 0 | E42: 0 | F42: 0 | G42: 0 | H42: 0 | I42: 0 | J42: 0 | K42: 0 | L42: 0 | M42: 0 | N42: 0 | O42: 0 | P42: 0
B43: 3 | C43: True/False | D43: =IF(D16>D$2,IF(D16<=D$3,1,0),0) -> 0 | E43: 0 | F43: 0 | G43: 0 | H43: 0 | I43: 0 | J43: 0 | K43: 0 | L43: 0 | M43: 0 | N43: 0 | O43: 0 | P43: 0
B44: 4 | C44: True/False | D44: =IF(D17>D$2,IF(D17<=D$3,1,0),0) -> 0 | E44: 0 | F44: 0 | G44: 0 | H44: 0 | I44: 0 | J44: 0 | K44: 0 | L44: 0 | M44: 0 | N44: 0 | O44: 0 | P44: 0
B45: 5 | C45: True/False | D45: =IF(D18>D$2,IF(D18<=D$3,1,0),0) -> 0 | E45: 0 | F45: 0 | G45: 0 | H45: 0 | I45: 0 | J45: 0 | K45: 0 | L45: 0 | M45: 0 | N45: 0 | O45: 0 | P45: 0
B46: 6 | C46: True/False | D46: =IF(D19>D$2,IF(D19<=D$3,1,0),0) -> 0 | E46: 0 | F46: 0 | G46: 0 | H46: 0 | I46: 0 | J46: 0 | K46: 0 | L46: 0 | M46: 0 | N46: 0 | O46: 0 | P46: 0
B47: 7 | C47: True/False | D47: =IF(D20>D$2,IF(D20<=D$3,1,0),0) -> 0 | E47: 0 | F47: 0 | G47: 0 | H47: 0 | I47: 0 | J47: 0 | K47: 0 | L47: 0 | M47: 0 | N47: 0 | O47: 0 | P47: 0
B48: 8 | C48: True/False | D48: =IF(D21>D$2,IF(D21<=D$3,1,0),0) -> 0 | E48: 0 | F48: 0 | G48: 0 | H48: 0 | I48: 0 | J48: 0 | K48: 0 | L48: 0 | M48: 0 | N48: 0 | O48: 0 | P48: 0
B49: 9 | C49: True/False | D49: =IF(D22>D$2,IF(D22<=D$3,1,0),0) -> 0 | E49: 0 | F49: 0 | G49: 0 | H49: 0 | I49: 0 | J49: 0 | K49: 0 | L49: 0 | M49: 0 | N49: 0 | O49: 0 | P49: 0
B50: 10 | C50: True/False | D50: =IF(D23>D$2,IF(D23<=D$3,1,0),0) -> 0 | E50: 0 | F50: 0 | G50: 0 | H50: 0 | I50: 0 | J50: 0 | K50: 0 | L50: 0 | M50: 0 | N50: 0 | O50: 0 | P50: 0
B51: 11 | C51: True/False | D51: =IF(D24>D$2,IF(D24<=D$3,1,0),0) -> 0 | E51: 0 | F51: 0 | G51: 0 | H51: 0 | I51: 0 | J51: 0 | K51: 0 | L51: 0 | M51: 0 | N51: 0 | O51: 0 | P51: 0
A52: Factor | R52: LIST | S52: Casing & | T52: Factored
A53: =+WDI_Standard_Order_Form!AF2 -> W | C53: UI - Price for "W" & "D", White | D53: =IF($A53="W",+D5,IF($A53="C",+D4,0)) -> 189.62 | E53: 193.1 | F53: 200.51 | G53: 231.5 | H53: 267.03 | I53: 288.61 | J53: 324.04 | K53: 355.64 | L53: 386.48 | M53: 416.56 | N53: 445.92 | O53: 474.19 | P53: 2.88 | R53: PRICE | S53: White? | T53: Price
A54: =IF($A$53="W",+WDI_Standard_Order_Form!$AF$3,1) -> 0.515 | B54: 1 | C54: =IF(WDI_Standard_Order_Form!D9="W",+WDI_Standard_Order_Form!Q9,IF(WDI_Standard_Order_Form!D9="D",+WDI_Standard_Order_Form!Q9,0)) -> 0 | D54: =+D41*D$53 -> 0 | E54: =+E41*E$53 -> 0 | F54: 0 | G54: 0 | H54: 0 | I54: 0 | J54: 0 | K54: 0 | L54: 0 | M54: 0 | N54: 0 | O54: 0 | P54: =+P41*P$53*P14 -> 0 | R54: =SUM(D54:Q54) -> 0 | S54: =IF(WDI_Standard_Order_Form!M9=75,1.15,1)*R114 -> 0 | T54: =+R54*A54*S54 -> 0
A55: =IF($A$53="W",+WDI_Standard_Order_Form!$AF$3,1) -> 0.515 | B55: 2 | C55: =IF(WDI_Standard_Order_Form!D10="W",+WDI_Standard_Order_Form!Q10,IF(WDI_Standard_Order_Form!D10="D",+WDI_Standard_Order_Form!Q10,0)) -> 0 | D55: =+D42*D$53 -> 0 | E55: 0 | F55: 0 | G55: 0 | H55: 0 | I55: 0 | J55: 0 | K55: 0 | L55: 0 | M55: 0 | N55: 0 | O55: 0 | P55: 0 | R55: =SUM(D55:Q55) -> 0 | S55: =IF(WDI_Standard_Order_Form!M10=75,1.15,1)*R115 -> 0 | T55: 0
A56: =IF($A$53="W",+WDI_Standard_Order_Form!$AF$3,1) -> 0.515 | B56: 3 | C56: =IF(WDI_Standard_Order_Form!D11="W",+WDI_Standard_Order_Form!Q11,IF(WDI_Standard_Order_Form!D11="D",+WDI_Standard_Order_Form!Q11,0)) -> 0 | D56: =+D43*D$53 -> 0 | E56: 0 | F56: 0 | G56: 0 | H56: 0 | I56: 0 | J56: 0 | K56: 0 | L56: 0 | M56: 0 | N56: 0 | O56: 0 | P56: 0 | R56: 0 | S56: =IF(WDI_Standard_Order_Form!M11=75,1.15,1)*R116 -> 0 | T56: 0
A57: =IF($A$53="W",+WDI_Standard_Order_Form!$AF$3,1) -> 0.515 | B57: 4 | C57: =IF(WDI_Standard_Order_Form!D12="W",+WDI_Standard_Order_Form!Q12,IF(WDI_Standard_Order_Form!D12="D",+WDI_Standard_Order_Form!Q12,0)) -> 0 | D57: =+D44*D$53 -> 0 | E57: 0 | F57: 0 | G57: 0 | H57: 0 | I57: 0 | J57: 0 | K57: 0 | L57: 0 | M57: 0 | N57: 0 | O57: 0 | P57: 0 | R57: 0 | S57: =IF(WDI_Standard_Order_Form!M12=75,1.15,1)*R117 -> 0 | T57: 0
A58: =IF($A$53="W",+WDI_Standard_Order_Form!$AF$3,1) -> 0.515 | B58: 5 | C58: =IF(WDI_Standard_Order_Form!D13="W",+WDI_Standard_Order_Form!Q13,IF(WDI_Standard_Order_Form!D13="D",+WDI_Standard_Order_Form!Q13,0)) -> 0 | D58: =+D45*D$53 -> 0 | E58: 0 | F58: 0 | G58: 0 | H58: 0 | I58: 0 | J58: 0 | K58: 0 | L58: 0 | M58: 0 | N58: 0 | O58: 0 | P58: 0 | R58: 0 | S58: =IF(WDI_Standard_Order_Form!M13=75,1.15,1)*R118 -> 0 | T58: 0
A59: =IF($A$53="W",+WDI_Standard_Order_Form!$AF$3,1) -> 0.515 | B59: 6 | C59: =IF(WDI_Standard_Order_Form!D14="W",+WDI_Standard_Order_Form!Q14,IF(WDI_Standard_Order_Form!D14="D",+WDI_Standard_Order_Form!Q14,0)) -> 0 | D59: =+D46*D$53 -> 0 | E59: 0 | F59: 0 | G59: 0 | H59: 0 | I59: 0 | J59: 0 | K59: 0 | L59: 0 | M59: 0 | N59: 0 | O59: 0 | P59: 0 | R59: 0 | S59: =IF(WDI_Standard_Order_Form!M14=75,1.15,1)*R119 -> 0 | T59: 0
A60: =IF($A$53="W",+WDI_Standard_Order_Form!$AF$3,1) -> 0.515 | B60: 7 | C60: =IF(WDI_Standard_Order_Form!D15="W",+WDI_Standard_Order_Form!Q15,IF(WDI_Standard_Order_Form!D15="D",+WDI_Standard_Order_Form!Q15,0)) -> 0 | D60: =+D47*D$53 -> 0 | E60: 0 | F60: 0 | G60: 0 | H60: 0 | I60: 0 | J60: 0 | K60: 0 | L60: 0 | M60: 0 | N60: 0 | O60: 0 | P60: 0 | R60: 0 | S60: =IF(WDI_Standard_Order_Form!M15=75,1.15,1)*R120 -> 0 | T60: 0
A61: =IF($A$53="W",+WDI_Standard_Order_Form!$AF$3,1) -> 0.515 | B61: 8 | C61: =IF(WDI_Standard_Order_Form!D16="W",+WDI_Standard_Order_Form!Q16,IF(WDI_Standard_Order_Form!D16="D",+WDI_Standard_Order_Form!Q16,0)) -> 0 | D61: =+D48*D$53 -> 0 | E61: 0 | F61: 0 | G61: 0 | H61: 0 | I61: 0 | J61: 0 | K61: 0 | L61: 0 | M61: 0 | N61: 0 | O61: 0 | P61: 0 | R61: 0 | S61: =IF(WDI_Standard_Order_Form!M16=75,1.15,1)*R121 -> 0 | T61: 0
A62: =IF($A$53="W",+WDI_Standard_Order_Form!$AF$3,1) -> 0.515 | B62: 9 | C62: =IF(WDI_Standard_Order_Form!D17="W",+WDI_Standard_Order_Form!Q17,IF(WDI_Standard_Order_Form!D17="D",+WDI_Standard_Order_Form!Q17,0)) -> 0 | D62: =+D49*D$53 -> 0 | E62: 0 | F62: 0 | G62: 0 | H62: 0 | I62: 0 | J62: 0 | K62: 0 | L62: 0 | M62: 0 | N62: 0 | O62: 0 | P62: 0 | R62: 0 | S62: =IF(WDI_Standard_Order_Form!M17=75,1.15,1)*R122 -> 0 | T62: 0
A63: =IF($A$53="W",+WDI_Standard_Order_Form!$AF$3,1) -> 0.515 | B63: 10 | C63: =IF(WDI_Standard_Order_Form!D18="W",+WDI_Standard_Order_Form!Q18,IF(WDI_Standard_Order_Form!D18="D",+WDI_Standard_Order_Form!Q18,0)) -> 0 | D63: =+D50*D$53 -> 0 | E63: 0 | F63: 0 | G63: 0 | H63: 0 | I63: 0 | J63: 0 | K63: 0 | L63: 0 | M63: 0 | N63: 0 | O63: 0 | P63: 0 | R63: 0 | S63: =IF(WDI_Standard_Order_Form!M18=75,1.15,1)*R123 -> 0 | T63: 0
A64: =IF($A$53="W",+WDI_Standard_Order_Form!$AF$3,1) -> 0.515 | B64: 11 | C64: =IF(WDI_Standard_Order_Form!D19="W",+WDI_Standard_Order_Form!Q19,IF(WDI_Standard_Order_Form!D19="D",+WDI_Standard_Order_Form!Q19,0)) -> 0 | D64: =+D51*D$53 -> 0 | E64: 0 | F64: 0 | G64: 0 | H64: 0 | I64: 0 | J64: 0 | K64: 0 | L64: 0 | M64: 0 | N64: 0 | O64: 0 | P64: 0 | R64: 0 | S64: =IF(WDI_Standard_Order_Form!M19=75,1.15,1)*R124 -> 0 | T64: 0
A67: Factor & White | R67: LIST | T67: Factored
A68: =+A53 -> W | C68: Stop Width $$/inch | D68: =IF($A68="W",+D20,IF($A68="C",+D19,0)) -> 0 | R68: PRICE | S68: White? | T68: Price
A69: =IF($A$53="W",+WDI_Standard_Order_Form!$AF$3,1) -> 0.515 | B69: 1 | C69: =+WDI_Standard_Order_Form!L9 ->  | D69: =IF($A$68="C",IF($C69<=1.25,+D$6,IF(C69<=2,+D$7,+D$8)),IF($A$68="W",IF($C69<=1.25,+D$9,IF(C69<=2,+D$10,+D$11)),9999)) -> 0.78 | E69: =IF($A$68="C",IF($C69<=1.25,+E$6,IF(D69<=2,+E$7,+E$8)),IF($A$68="W",IF($C69<=1.25,+E$9,IF(D69<=2,+E$10,+E$11)),9999)) -> 0.42 | F69: 0.42 | G69: 0.42 | H69: 0.42 | I69: 0.42 | J69: 0.42 | K69: 0.42 | L69: 0.42 | M69: 0.42 | N69: 0.42 | O69: 0.42 | P69: 0.42 | R69: =SUM(D69:Q69) -> 5.82 | S69: =IF(WDI_Standard_Order_Form!M9=75,1.15,1) -> 1 | T69: =+R69*A69*S69 -> 2.9973
A70: =IF($A$53="W",+WDI_Standard_Order_Form!$AF$3,1) -> 0.515 | B70: 2 | C70: =+WDI_Standard_Order_Form!L10 ->  | D70: 0.78 | E70: =IF($A$68="C",IF($C70<=1.25,+E$6,IF(D70<=2,+E$7,+E$8)),IF($A$68="W",IF($C70<=1.25,+E$9,IF(D70<=2,+E$10,+E$11)),9999)) -> 0.42 | F70: 0.42 | G70: 0.42 | H70: 0.42 | I70: 0.42 | J70: 0.42 | K70: 0.42 | L70: 0.42 | M70: 0.42 | N70: 0.42 | O70: 0.42 | P70: 0.42 | R70: =SUM(D70:Q70) -> 5.82 | S70: =IF(WDI_Standard_Order_Form!M10=75,1.15,1) -> 1 | T70: 2.9973
A71: =IF($A$53="W",+WDI_Standard_Order_Form!$AF$3,1) -> 0.515 | B71: 3 | C71: =+WDI_Standard_Order_Form!L11 ->  | D71: 0.78 | E71: =IF($A$68="C",IF($C71<=1.25,+E$6,IF(D71<=2,+E$7,+E$8)),IF($A$68="W",IF($C71<=1.25,+E$9,IF(D71<=2,+E$10,+E$11)),9999)) -> 0.42 | F71: 0.42 | G71: 0.42 | H71: 0.42 | I71: 0.42 | J71: 0.42 | K71: 0.42 | L71: 0.42 | M71: 0.42 | N71: 0.42 | O71: 0.42 | P71: 0.42 | R71: 5.82 | S71: =IF(WDI_Standard_Order_Form!M11=75,1.15,1) -> 1 | T71: 2.9973
A72: =IF($A$53="W",+WDI_Standard_Order_Form!$AF$3,1) -> 0.515 | B72: 4 | C72: =+WDI_Standard_Order_Form!L12 ->  | D72: 0.78 | E72: =IF($A$68="C",IF($C72<=1.25,+E$6,IF(D72<=2,+E$7,+E$8)),IF($A$68="W",IF($C72<=1.25,+E$9,IF(D72<=2,+E$10,+E$11)),9999)) -> 0.42 | F72: 0.42 | G72: 0.42 | H72: 0.42 | I72: 0.42 | J72: 0.42 | K72: 0.42 | L72: 0.42 | M72: 0.42 | N72: 0.42 | O72: 0.42 | P72: 0.42 | R72: 5.82 | S72: =IF(WDI_Standard_Order_Form!M12=75,1.15,1) -> 1 | T72: 2.9973
A73: =IF($A$53="W",+WDI_Standard_Order_Form!$AF$3,1) -> 0.515 | B73: 5 | C73: =+WDI_Standard_Order_Form!L13 ->  | D73: 0.78 | E73: =IF($A$68="C",IF($C73<=1.25,+E$6,IF(D73<=2,+E$7,+E$8)),IF($A$68="W",IF($C73<=1.25,+E$9,IF(D73<=2,+E$10,+E$11)),9999)) -> 0.42 | F73: 0.42 | G73: 0.42 | H73: 0.42 | I73: 0.42 | J73: 0.42 | K73: 0.42 | L73: 0.42 | M73: 0.42 | N73: 0.42 | O73: 0.42 | P73: 0.42 | R73: 5.82 | S73: =IF(WDI_Standard_Order_Form!M13=75,1.15,1) -> 1 | T73: 2.9973
A74: =IF($A$53="W",+WDI_Standard_Order_Form!$AF$3,1) -> 0.515 | B74: 6 | C74: =+WDI_Standard_Order_Form!L14 ->  | D74: 0.78 | E74: =IF($A$68="C",IF($C74<=1.25,+E$6,IF(D74<=2,+E$7,+E$8)),IF($A$68="W",IF($C74<=1.25,+E$9,IF(D74<=2,+E$10,+E$11)),9999)) -> 0.42 | F74: 0.42 | G74: 0.42 | H74: 0.42 | I74: 0.42 | J74: 0.42 | K74: 0.42 | L74: 0.42 | M74: 0.42 | N74: 0.42 | O74: 0.42 | P74: 0.42 | R74: 5.82 | S74: =IF(WDI_Standard_Order_Form!M14=75,1.15,1) -> 1 | T74: 2.9973
A75: =IF($A$53="W",+WDI_Standard_Order_Form!$AF$3,1) -> 0.515 | B75: 7 | C75: =+WDI_Standard_Order_Form!L15 ->  | D75: 0.78 | E75: =IF($A$68="C",IF($C75<=1.25,+E$6,IF(D75<=2,+E$7,+E$8)),IF($A$68="W",IF($C75<=1.25,+E$9,IF(D75<=2,+E$10,+E$11)),9999)) -> 0.42 | F75: 0.42 | G75: 0.42 | H75: 0.42 | I75: 0.42 | J75: 0.42 | K75: 0.42 | L75: 0.42 | M75: 0.42 | N75: 0.42 | O75: 0.42 | P75: 0.42 | R75: 5.82 | S75: =IF(WDI_Standard_Order_Form!M15=75,1.15,1) -> 1 | T75: 2.9973
A76: =IF($A$53="W",+WDI_Standard_Order_Form!$AF$3,1) -> 0.515 | B76: 8 | C76: =+WDI_Standard_Order_Form!L16 ->  | D76: 0.78 | E76: =IF($A$68="C",IF($C76<=1.25,+E$6,IF(D76<=2,+E$7,+E$8)),IF($A$68="W",IF($C76<=1.25,+E$9,IF(D76<=2,+E$10,+E$11)),9999)) -> 0.42 | F76: 0.42 | G76: 0.42 | H76: 0.42 | I76: 0.42 | J76: 0.42 | K76: 0.42 | L76: 0.42 | M76: 0.42 | N76: 0.42 | O76: 0.42 | P76: 0.42 | R76: 5.82 | S76: =IF(WDI_Standard_Order_Form!M16=75,1.15,1) -> 1 | T76: 2.9973
A77: =IF($A$53="W",+WDI_Standard_Order_Form!$AF$3,1) -> 0.515 | B77: 9 | C77: =+WDI_Standard_Order_Form!L17 ->  | D77: 0.78 | E77: =IF($A$68="C",IF($C77<=1.25,+E$6,IF(D77<=2,+E$7,+E$8)),IF($A$68="W",IF($C77<=1.25,+E$9,IF(D77<=2,+E$10,+E$11)),9999)) -> 0.42 | F77: 0.42 | G77: 0.42 | H77: 0.42 | I77: 0.42 | J77: 0.42 | K77: 0.42 | L77: 0.42 | M77: 0.42 | N77: 0.42 | O77: 0.42 | P77: 0.42 | R77: 5.82 | S77: =IF(WDI_Standard_Order_Form!M17=75,1.15,1) -> 1 | T77: 2.9973
A78: =IF($A$53="W",+WDI_Standard_Order_Form!$AF$3,1) -> 0.515 | B78: 10 | C78: =+WDI_Standard_Order_Form!L18 ->  | D78: 0.78 | E78: =IF($A$68="C",IF($C78<=1.25,+E$6,IF(D78<=2,+E$7,+E$8)),IF($A$68="W",IF($C78<=1.25,+E$9,IF(D78<=2,+E$10,+E$11)),9999)) -> 0.42 | F78: 0.42 | G78: 0.42 | H78: 0.42 | I78: 0.42 | J78: 0.42 | K78: 0.42 | L78: 0.42 | M78: 0.42 | N78: 0.42 | O78: 0.42 | P78: 0.42 | R78: 5.82 | S78: =IF(WDI_Standard_Order_Form!M18=75,1.15,1) -> 1 | T78: 2.9973
A79: =IF($A$53="W",+WDI_Standard_Order_Form!$AF$3,1) -> 0.515 | B79: 11 | C79: =+WDI_Standard_Order_Form!L19 ->  | D79: 0.78 | E79: =IF($A$68="C",IF($C79<=1.25,+E$6,IF(D79<=2,+E$7,+E$8)),IF($A$68="W",IF($C79<=1.25,+E$9,IF(D79<=2,+E$10,+E$11)),9999)) -> 0.42 | F79: 0.42 | G79: 0.42 | H79: 0.42 | I79: 0.42 | J79: 0.42 | K79: 0.42 | L79: 0.42 | M79: 0.42 | N79: 0.42 | O79: 0.42 | P79: 0.42 | R79: 5.82 | S79: =IF(WDI_Standard_Order_Form!M19=75,1.15,1) -> 1 | T79: 2.9973
R82: LIST | T82: Factored
A83: =+A68 -> W | C83: Stop Width Price/Window | R83: PRICE | S83: White? | T83: Price
A84: =IF($A$53="W",+WDI_Standard_Order_Form!$AF$3,1) -> 0.515 | B84: 1 | C84: =+WDI_Standard_Order_Form!L9 ->  | D84: =+D28*D41*D69 -> 0 | E84: =+E28*E41*E69 -> 0 | F84: 0 | G84: 0 | H84: 0 | I84: 0 | J84: 0 | K84: 0 | L84: 0 | M84: 0 | N84: 0 | O84: 0 | P84: =+P28*P41*P69 -> 0 | R84: =SUM(D84:Q84) -> 0 | S84: =IF(WDI_Standard_Order_Form!M9=75,1.15,1) -> 1 | T84: =+R84*A84*S84 -> 0
A85: =IF($A$53="W",+WDI_Standard_Order_Form!$AF$3,1) -> 0.515 | B85: 2 | C85: =+WDI_Standard_Order_Form!L10 ->  | D85: =+D29*D42*D70 -> 0 | E85: 0 | F85: 0 | G85: 0 | H85: 0 | I85: 0 | J85: 0 | K85: 0 | L85: 0 | M85: 0 | N85: 0 | O85: 0 | P85: =+P29*P42*P70 -> 0 | R85: =SUM(D85:Q85) -> 0 | S85: =IF(WDI_Standard_Order_Form!M10=75,1.15,1) -> 1 | T85: 0
A86: =IF($A$53="W",+WDI_Standard_Order_Form!$AF$3,1) -> 0.515 | B86: 3 | C86: =+WDI_Standard_Order_Form!L11 ->  | D86: =+D30*D43*D71 -> 0 | E86: 0 | F86: 0 | G86: 0 | H86: 0 | I86: 0 | J86: 0 | K86: 0 | L86: 0 | M86: 0 | N86: 0 | O86: 0 | P86: =+P30*P43*P71 -> 0 | R86: 0 | S86: =IF(WDI_Standard_Order_Form!M11=75,1.15,1) -> 1 | T86: 0
A87: =IF($A$53="W",+WDI_Standard_Order_Form!$AF$3,1) -> 0.515 | B87: 4 | C87: =+WDI_Standard_Order_Form!L12 ->  | D87: =+D31*D44*D72 -> 0 | E87: 0 | F87: 0 | G87: 0 | H87: 0 | I87: 0 | J87: 0 | K87: 0 | L87: 0 | M87: 0 | N87: 0 | O87: 0 | P87: =+P31*P44*P72 -> 0 | R87: 0 | S87: =IF(WDI_Standard_Order_Form!M12=75,1.15,1) -> 1 | T87: 0
A88: =IF($A$53="W",+WDI_Standard_Order_Form!$AF$3,1) -> 0.515 | B88: 5 | C88: =+WDI_Standard_Order_Form!L13 ->  | D88: =+D32*D45*D73 -> 0 | E88: 0 | F88: 0 | G88: 0 | H88: 0 | I88: 0 | J88: 0 | K88: 0 | L88: 0 | M88: 0 | N88: 0 | O88: 0 | P88: =+P32*P45*P73 -> 0 | R88: 0 | S88: =IF(WDI_Standard_Order_Form!M13=75,1.15,1) -> 1 | T88: 0
A89: =IF($A$53="W",+WDI_Standard_Order_Form!$AF$3,1) -> 0.515 | B89: 6 | C89: =+WDI_Standard_Order_Form!L14 ->  | D89: =+D33*D46*D74 -> 0 | E89: 0 | F89: 0 | G89: 0 | H89: 0 | I89: 0 | J89: 0 | K89: 0 | L89: 0 | M89: 0 | N89: 0 | O89: 0 | P89: =+P33*P46*P74 -> 0 | R89: 0 | S89: =IF(WDI_Standard_Order_Form!M14=75,1.15,1) -> 1 | T89: 0
A90: =IF($A$53="W",+WDI_Standard_Order_Form!$AF$3,1) -> 0.515 | B90: 7 | C90: =+WDI_Standard_Order_Form!L15 ->  | D90: =+D34*D47*D75 -> 0 | E90: 0 | F90: 0 | G90: 0 | H90: 0 | I90: 0 | J90: 0 | K90: 0 | L90: 0 | M90: 0 | N90: 0 | O90: 0 | P90: =+P34*P47*P75 -> 0 | R90: 0 | S90: =IF(WDI_Standard_Order_Form!M15=75,1.15,1) -> 1 | T90: 0
A91: =IF($A$53="W",+WDI_Standard_Order_Form!$AF$3,1) -> 0.515 | B91: 8 | C91: =+WDI_Standard_Order_Form!L16 ->  | D91: =+D35*D48*D76 -> 0 | E91: 0 | F91: 0 | G91: 0 | H91: 0 | I91: 0 | J91: 0 | K91: 0 | L91: 0 | M91: 0 | N91: 0 | O91: 0 | P91: =+P35*P48*P76 -> 0 | R91: 0 | S91: =IF(WDI_Standard_Order_Form!M16=75,1.15,1) -> 1 | T91: 0
A92: =IF($A$53="W",+WDI_Standard_Order_Form!$AF$3,1) -> 0.515 | B92: 9 | C92: =+WDI_Standard_Order_Form!L17 ->  | D92: =+D36*D49*D77 -> 0 | E92: 0 | F92: 0 | G92: 0 | H92: 0 | I92: 0 | J92: 0 | K92: 0 | L92: 0 | M92: 0 | N92: 0 | O92: 0 | P92: =+P36*P49*P77 -> 0 | R92: 0 | S92: =IF(WDI_Standard_Order_Form!M17=75,1.15,1) -> 1 | T92: 0
A93: =IF($A$53="W",+WDI_Standard_Order_Form!$AF$3,1) -> 0.515 | B93: 10 | C93: =+WDI_Standard_Order_Form!L18 ->  | D93: =+D37*D50*D78 -> 0 | E93: 0 | F93: 0 | G93: 0 | H93: 0 | I93: 0 | J93: 0 | K93: 0 | L93: 0 | M93: 0 | N93: 0 | O93: 0 | P93: =+P37*P50*P78 -> 0 | R93: 0 | S93: =IF(WDI_Standard_Order_Form!M18=75,1.15,1) -> 1 | T93: 0
A94: =IF($A$53="W",+WDI_Standard_Order_Form!$AF$3,1) -> 0.515 | B94: 11 | C94: =+WDI_Standard_Order_Form!L19 ->  | D94: =+D38*D51*D79 -> 0 | E94: 0 | F94: 0 | G94: 0 | H94: 0 | I94: 0 | J94: 0 | K94: 0 | L94: 0 | M94: 0 | N94: 0 | O94: 0 | P94: =+P38*P51*P79 -> 0 | R94: 0 | S94: =IF(WDI_Standard_Order_Form!M19=75,1.15,1) -> 1 | T94: 0
A97: Factor & White | R97: LIST | T97: Factored
A98: =+A83 -> W | C98: Casing widths factor | D98: =IF($A98="W",+D63,IF($A98="C",+D62,0)) -> 0 | R98: PRICE | S98: White? | T98: Price
A99: =IF($A$53="W",+WDI_Standard_Order_Form!$AF$3,1) -> 0.515 | B99: 1 | C99: =+WDI_Standard_Order_Form!L39 -> 0 | D99: =IF(WDI_Standard_Order_Form!$J9=2.25,1,IF(WDI_Standard_Order_Form!$J9=2.5,1.05,IF(WDI_Standard_Order_Form!$J9=3.25,1.15,0))) -> 0 | E99: =IF(WDI_Standard_Order_Form!$J9=2.25,1,IF(WDI_Standard_Order_Form!$J9=2.5,1.05,IF(WDI_Standard_Order_Form!$J9=3.25,1.15,0))) -> 0 | F99: =IF(WDI_Standard_Order_Form!$J9=2.25,1,IF(WDI_Standard_Order_Form!$J9=2.5,1.05,IF(WDI_Standard_Order_Form!$J9=3.25,1.15,0))) -> 0 | G99: =IF(WDI_Standard_Order_Form!$J9=2.25,1,IF(WDI_Standard_Order_Form!$J9=2.5,1.05,IF(WDI_Standard_Order_Form!$J9=3.25,1.15,0))) -> 0 | H99: =IF(WDI_Standard_Order_Form!$J9=2.25,1,IF(WDI_Standard_Order_Form!$J9=2.5,1.05,IF(WDI_Standard_Order_Form!$J9=3.25,1.15,0))) -> 0 | I99: =IF(WDI_Standard_Order_Form!$J9=2.25,1,IF(WDI_Standard_Order_Form!$J9=2.5,1.05,IF(WDI_Standard_Order_Form!$J9=3.25,1.15,0))) -> 0 | J99: =IF(WDI_Standard_Order_Form!$J9=2.25,1,IF(WDI_Standard_Order_Form!$J9=2.5,1.05,IF(WDI_Standard_Order_Form!$J9=3.25,1.15,0))) -> 0 | K99: =IF(WDI_Standard_Order_Form!$J9=2.25,1,IF(WDI_Standard_Order_Form!$J9=2.5,1.05,IF(WDI_Standard_Order_Form!$J9=3.25,1.15,0))) -> 0 | L99: =IF(WDI_Standard_Order_Form!$J9=2.25,1,IF(WDI_Standard_Order_Form!$J9=2.5,1.05,IF(WDI_Standard_Order_Form!$J9=3.25,1.15,0))) -> 0 | M99: =IF(WDI_Standard_Order_Form!$J9=2.25,1,IF(WDI_Standard_Order_Form!$J9=2.5,1.05,IF(WDI_Standard_Order_Form!$J9=3.25,1.15,0))) -> 0 | N99: =IF(WDI_Standard_Order_Form!$J9=2.25,1,IF(WDI_Standard_Order_Form!$J9=2.5,1.05,IF(WDI_Standard_Order_Form!$J9=3.25,1.15,0))) -> 0 | O99: =IF(WDI_Standard_Order_Form!$J9=2.25,1,IF(WDI_Standard_Order_Form!$J9=2.5,1.05,IF(WDI_Standard_Order_Form!$J9=3.25,1.15,0))) -> 0 | P99: =IF(WDI_Standard_Order_Form!$J9=2.25,1,IF(WDI_Standard_Order_Form!$J9=2.5,1.05,IF(WDI_Standard_Order_Form!$J9=3.25,1.15,0))) -> 0 | R99: =SUM(D99:Q99) -> 0 | S99: =IF(WDI_Standard_Order_Form!M9=75,1.15,1) -> 1 | T99: =+R99*A99*S99 -> 0
A100: =IF($A$53="W",+WDI_Standard_Order_Form!$AF$3,1) -> 0.515 | B100: 2 | C100: =+WDI_Standard_Order_Form!L40 -> 0 | D100: =IF(WDI_Standard_Order_Form!$J10=2.25,1,IF(WDI_Standard_Order_Form!$J10=2.5,1.05,IF(WDI_Standard_Order_Form!$J10=3.25,1.15,0))) -> 0 | E100: =IF(WDI_Standard_Order_Form!$J10=2.25,1,IF(WDI_Standard_Order_Form!$J10=2.5,1.05,IF(WDI_Standard_Order_Form!$J10=3.25,1.15,0))) -> 0 | F100: =IF(WDI_Standard_Order_Form!$J10=2.25,1,IF(WDI_Standard_Order_Form!$J10=2.5,1.05,IF(WDI_Standard_Order_Form!$J10=3.25,1.15,0))) -> 0 | G100: =IF(WDI_Standard_Order_Form!$J10=2.25,1,IF(WDI_Standard_Order_Form!$J10=2.5,1.05,IF(WDI_Standard_Order_Form!$J10=3.25,1.15,0))) -> 0 | H100: =IF(WDI_Standard_Order_Form!$J10=2.25,1,IF(WDI_Standard_Order_Form!$J10=2.5,1.05,IF(WDI_Standard_Order_Form!$J10=3.25,1.15,0))) -> 0 | I100: =IF(WDI_Standard_Order_Form!$J10=2.25,1,IF(WDI_Standard_Order_Form!$J10=2.5,1.05,IF(WDI_Standard_Order_Form!$J10=3.25,1.15,0))) -> 0 | J100: =IF(WDI_Standard_Order_Form!$J10=2.25,1,IF(WDI_Standard_Order_Form!$J10=2.5,1.05,IF(WDI_Standard_Order_Form!$J10=3.25,1.15,0))) -> 0 | K100: =IF(WDI_Standard_Order_Form!$J10=2.25,1,IF(WDI_Standard_Order_Form!$J10=2.5,1.05,IF(WDI_Standard_Order_Form!$J10=3.25,1.15,0))) -> 0 | L100: =IF(WDI_Standard_Order_Form!$J10=2.25,1,IF(WDI_Standard_Order_Form!$J10=2.5,1.05,IF(WDI_Standard_Order_Form!$J10=3.25,1.15,0))) -> 0 | M100: =IF(WDI_Standard_Order_Form!$J10=2.25,1,IF(WDI_Standard_Order_Form!$J10=2.5,1.05,IF(WDI_Standard_Order_Form!$J10=3.25,1.15,0))) -> 0 | N100: =IF(WDI_Standard_Order_Form!$J10=2.25,1,IF(WDI_Standard_Order_Form!$J10=2.5,1.05,IF(WDI_Standard_Order_Form!$J10=3.25,1.15,0))) -> 0 | O100: =IF(WDI_Standard_Order_Form!$J10=2.25,1,IF(WDI_Standard_Order_Form!$J10=2.5,1.05,IF(WDI_Standard_Order_Form!$J10=3.25,1.15,0))) -> 0 | P100: =IF(WDI_Standard_Order_Form!$J10=2.25,1,IF(WDI_Standard_Order_Form!$J10=2.5,1.05,IF(WDI_Standard_Order_Form!$J10=3.25,1.15,0))) -> 0 | R100: =SUM(D100:Q100) -> 0 | S100: =IF(WDI_Standard_Order_Form!M10=75,1.15,1) -> 1 | T100: 0
A101: =IF($A$53="W",+WDI_Standard_Order_Form!$AF$3,1) -> 0.515 | B101: 3 | C101: =+WDI_Standard_Order_Form!L41 -> 0 | D101: =IF(WDI_Standard_Order_Form!$J11=2.25,1,IF(WDI_Standard_Order_Form!$J11=2.5,1.05,IF(WDI_Standard_Order_Form!$J11=3.25,1.15,0))) -> 0 | E101: =IF(WDI_Standard_Order_Form!$J11=2.25,1,IF(WDI_Standard_Order_Form!$J11=2.5,1.05,IF(WDI_Standard_Order_Form!$J11=3.25,1.15,0))) -> 0 | F101: =IF(WDI_Standard_Order_Form!$J11=2.25,1,IF(WDI_Standard_Order_Form!$J11=2.5,1.05,IF(WDI_Standard_Order_Form!$J11=3.25,1.15,0))) -> 0 | G101: =IF(WDI_Standard_Order_Form!$J11=2.25,1,IF(WDI_Standard_Order_Form!$J11=2.5,1.05,IF(WDI_Standard_Order_Form!$J11=3.25,1.15,0))) -> 0 | H101: =IF(WDI_Standard_Order_Form!$J11=2.25,1,IF(WDI_Standard_Order_Form!$J11=2.5,1.05,IF(WDI_Standard_Order_Form!$J11=3.25,1.15,0))) -> 0 | I101: =IF(WDI_Standard_Order_Form!$J11=2.25,1,IF(WDI_Standard_Order_Form!$J11=2.5,1.05,IF(WDI_Standard_Order_Form!$J11=3.25,1.15,0))) -> 0 | J101: =IF(WDI_Standard_Order_Form!$J11=2.25,1,IF(WDI_Standard_Order_Form!$J11=2.5,1.05,IF(WDI_Standard_Order_Form!$J11=3.25,1.15,0))) -> 0 | K101: =IF(WDI_Standard_Order_Form!$J11=2.25,1,IF(WDI_Standard_Order_Form!$J11=2.5,1.05,IF(WDI_Standard_Order_Form!$J11=3.25,1.15,0))) -> 0 | L101: =IF(WDI_Standard_Order_Form!$J11=2.25,1,IF(WDI_Standard_Order_Form!$J11=2.5,1.05,IF(WDI_Standard_Order_Form!$J11=3.25,1.15,0))) -> 0 | M101: =IF(WDI_Standard_Order_Form!$J11=2.25,1,IF(WDI_Standard_Order_Form!$J11=2.5,1.05,IF(WDI_Standard_Order_Form!$J11=3.25,1.15,0))) -> 0 | N101: =IF(WDI_Standard_Order_Form!$J11=2.25,1,IF(WDI_Standard_Order_Form!$J11=2.5,1.05,IF(WDI_Standard_Order_Form!$J11=3.25,1.15,0))) -> 0 | O101: =IF(WDI_Standard_Order_Form!$J11=2.25,1,IF(WDI_Standard_Order_Form!$J11=2.5,1.05,IF(WDI_Standard_Order_Form!$J11=3.25,1.15,0))) -> 0 | P101: =IF(WDI_Standard_Order_Form!$J11=2.25,1,IF(WDI_Standard_Order_Form!$J11=2.5,1.05,IF(WDI_Standard_Order_Form!$J11=3.25,1.15,0))) -> 0 | R101: 0 | S101: =IF(WDI_Standard_Order_Form!M11=75,1.15,1) -> 1 | T101: 0
A102: =IF($A$53="W",+WDI_Standard_Order_Form!$AF$3,1) -> 0.515 | B102: 4 | C102: =+WDI_Standard_Order_Form!L42 -> 0 | D102: =IF(WDI_Standard_Order_Form!$J12=2.25,1,IF(WDI_Standard_Order_Form!$J12=2.5,1.05,IF(WDI_Standard_Order_Form!$J12=3.25,1.15,0))) -> 0 | E102: =IF(WDI_Standard_Order_Form!$J12=2.25,1,IF(WDI_Standard_Order_Form!$J12=2.5,1.05,IF(WDI_Standard_Order_Form!$J12=3.25,1.15,0))) -> 0 | F102: =IF(WDI_Standard_Order_Form!$J12=2.25,1,IF(WDI_Standard_Order_Form!$J12=2.5,1.05,IF(WDI_Standard_Order_Form!$J12=3.25,1.15,0))) -> 0 | G102: =IF(WDI_Standard_Order_Form!$J12=2.25,1,IF(WDI_Standard_Order_Form!$J12=2.5,1.05,IF(WDI_Standard_Order_Form!$J12=3.25,1.15,0))) -> 0 | H102: =IF(WDI_Standard_Order_Form!$J12=2.25,1,IF(WDI_Standard_Order_Form!$J12=2.5,1.05,IF(WDI_Standard_Order_Form!$J12=3.25,1.15,0))) -> 0 | I102: =IF(WDI_Standard_Order_Form!$J12=2.25,1,IF(WDI_Standard_Order_Form!$J12=2.5,1.05,IF(WDI_Standard_Order_Form!$J12=3.25,1.15,0))) -> 0 | J102: =IF(WDI_Standard_Order_Form!$J12=2.25,1,IF(WDI_Standard_Order_Form!$J12=2.5,1.05,IF(WDI_Standard_Order_Form!$J12=3.25,1.15,0))) -> 0 | K102: =IF(WDI_Standard_Order_Form!$J12=2.25,1,IF(WDI_Standard_Order_Form!$J12=2.5,1.05,IF(WDI_Standard_Order_Form!$J12=3.25,1.15,0))) -> 0 | L102: =IF(WDI_Standard_Order_Form!$J12=2.25,1,IF(WDI_Standard_Order_Form!$J12=2.5,1.05,IF(WDI_Standard_Order_Form!$J12=3.25,1.15,0))) -> 0 | M102: =IF(WDI_Standard_Order_Form!$J12=2.25,1,IF(WDI_Standard_Order_Form!$J12=2.5,1.05,IF(WDI_Standard_Order_Form!$J12=3.25,1.15,0))) -> 0 | N102: =IF(WDI_Standard_Order_Form!$J12=2.25,1,IF(WDI_Standard_Order_Form!$J12=2.5,1.05,IF(WDI_Standard_Order_Form!$J12=3.25,1.15,0))) -> 0 | O102: =IF(WDI_Standard_Order_Form!$J12=2.25,1,IF(WDI_Standard_Order_Form!$J12=2.5,1.05,IF(WDI_Standard_Order_Form!$J12=3.25,1.15,0))) -> 0 | P102: =IF(WDI_Standard_Order_Form!$J12=2.25,1,IF(WDI_Standard_Order_Form!$J12=2.5,1.05,IF(WDI_Standard_Order_Form!$J12=3.25,1.15,0))) -> 0 | R102: 0 | S102: =IF(WDI_Standard_Order_Form!M12=75,1.15,1) -> 1 | T102: 0
A103: =IF($A$53="W",+WDI_Standard_Order_Form!$AF$3,1) -> 0.515 | B103: 5 | C103: =+WDI_Standard_Order_Form!L43 -> 0 | D103: =IF(WDI_Standard_Order_Form!$J13=2.25,1,IF(WDI_Standard_Order_Form!$J13=2.5,1.05,IF(WDI_Standard_Order_Form!$J13=3.25,1.15,0))) -> 0 | E103: =IF(WDI_Standard_Order_Form!$J13=2.25,1,IF(WDI_Standard_Order_Form!$J13=2.5,1.05,IF(WDI_Standard_Order_Form!$J13=3.25,1.15,0))) -> 0 | F103: =IF(WDI_Standard_Order_Form!$J13=2.25,1,IF(WDI_Standard_Order_Form!$J13=2.5,1.05,IF(WDI_Standard_Order_Form!$J13=3.25,1.15,0))) -> 0 | G103: =IF(WDI_Standard_Order_Form!$J13=2.25,1,IF(WDI_Standard_Order_Form!$J13=2.5,1.05,IF(WDI_Standard_Order_Form!$J13=3.25,1.15,0))) -> 0 | H103: =IF(WDI_Standard_Order_Form!$J13=2.25,1,IF(WDI_Standard_Order_Form!$J13=2.5,1.05,IF(WDI_Standard_Order_Form!$J13=3.25,1.15,0))) -> 0 | I103: =IF(WDI_Standard_Order_Form!$J13=2.25,1,IF(WDI_Standard_Order_Form!$J13=2.5,1.05,IF(WDI_Standard_Order_Form!$J13=3.25,1.15,0))) -> 0 | J103: =IF(WDI_Standard_Order_Form!$J13=2.25,1,IF(WDI_Standard_Order_Form!$J13=2.5,1.05,IF(WDI_Standard_Order_Form!$J13=3.25,1.15,0))) -> 0 | K103: =IF(WDI_Standard_Order_Form!$J13=2.25,1,IF(WDI_Standard_Order_Form!$J13=2.5,1.05,IF(WDI_Standard_Order_Form!$J13=3.25,1.15,0))) -> 0 | L103: =IF(WDI_Standard_Order_Form!$J13=2.25,1,IF(WDI_Standard_Order_Form!$J13=2.5,1.05,IF(WDI_Standard_Order_Form!$J13=3.25,1.15,0))) -> 0 | M103: =IF(WDI_Standard_Order_Form!$J13=2.25,1,IF(WDI_Standard_Order_Form!$J13=2.5,1.05,IF(WDI_Standard_Order_Form!$J13=3.25,1.15,0))) -> 0 | N103: =IF(WDI_Standard_Order_Form!$J13=2.25,1,IF(WDI_Standard_Order_Form!$J13=2.5,1.05,IF(WDI_Standard_Order_Form!$J13=3.25,1.15,0))) -> 0 | O103: =IF(WDI_Standard_Order_Form!$J13=2.25,1,IF(WDI_Standard_Order_Form!$J13=2.5,1.05,IF(WDI_Standard_Order_Form!$J13=3.25,1.15,0))) -> 0 | P103: =IF(WDI_Standard_Order_Form!$J13=2.25,1,IF(WDI_Standard_Order_Form!$J13=2.5,1.05,IF(WDI_Standard_Order_Form!$J13=3.25,1.15,0))) -> 0 | R103: 0 | S103: =IF(WDI_Standard_Order_Form!M13=75,1.15,1) -> 1 | T103: 0
A104: =IF($A$53="W",+WDI_Standard_Order_Form!$AF$3,1) -> 0.515 | B104: 6 | C104: =+WDI_Standard_Order_Form!L44 -> 0 | D104: =IF(WDI_Standard_Order_Form!$J14=2.25,1,IF(WDI_Standard_Order_Form!$J14=2.5,1.05,IF(WDI_Standard_Order_Form!$J14=3.25,1.15,0))) -> 0 | E104: =IF(WDI_Standard_Order_Form!$J14=2.25,1,IF(WDI_Standard_Order_Form!$J14=2.5,1.05,IF(WDI_Standard_Order_Form!$J14=3.25,1.15,0))) -> 0 | F104: =IF(WDI_Standard_Order_Form!$J14=2.25,1,IF(WDI_Standard_Order_Form!$J14=2.5,1.05,IF(WDI_Standard_Order_Form!$J14=3.25,1.15,0))) -> 0 | G104: =IF(WDI_Standard_Order_Form!$J14=2.25,1,IF(WDI_Standard_Order_Form!$J14=2.5,1.05,IF(WDI_Standard_Order_Form!$J14=3.25,1.15,0))) -> 0 | H104: =IF(WDI_Standard_Order_Form!$J14=2.25,1,IF(WDI_Standard_Order_Form!$J14=2.5,1.05,IF(WDI_Standard_Order_Form!$J14=3.25,1.15,0))) -> 0 | I104: =IF(WDI_Standard_Order_Form!$J14=2.25,1,IF(WDI_Standard_Order_Form!$J14=2.5,1.05,IF(WDI_Standard_Order_Form!$J14=3.25,1.15,0))) -> 0 | J104: =IF(WDI_Standard_Order_Form!$J14=2.25,1,IF(WDI_Standard_Order_Form!$J14=2.5,1.05,IF(WDI_Standard_Order_Form!$J14=3.25,1.15,0))) -> 0 | K104: =IF(WDI_Standard_Order_Form!$J14=2.25,1,IF(WDI_Standard_Order_Form!$J14=2.5,1.05,IF(WDI_Standard_Order_Form!$J14=3.25,1.15,0))) -> 0 | L104: =IF(WDI_Standard_Order_Form!$J14=2.25,1,IF(WDI_Standard_Order_Form!$J14=2.5,1.05,IF(WDI_Standard_Order_Form!$J14=3.25,1.15,0))) -> 0 | M104: =IF(WDI_Standard_Order_Form!$J14=2.25,1,IF(WDI_Standard_Order_Form!$J14=2.5,1.05,IF(WDI_Standard_Order_Form!$J14=3.25,1.15,0))) -> 0 | N104: =IF(WDI_Standard_Order_Form!$J14=2.25,1,IF(WDI_Standard_Order_Form!$J14=2.5,1.05,IF(WDI_Standard_Order_Form!$J14=3.25,1.15,0))) -> 0 | O104: =IF(WDI_Standard_Order_Form!$J14=2.25,1,IF(WDI_Standard_Order_Form!$J14=2.5,1.05,IF(WDI_Standard_Order_Form!$J14=3.25,1.15,0))) -> 0 | P104: =IF(WDI_Standard_Order_Form!$J14=2.25,1,IF(WDI_Standard_Order_Form!$J14=2.5,1.05,IF(WDI_Standard_Order_Form!$J14=3.25,1.15,0))) -> 0 | R104: 0 | S104: =IF(WDI_Standard_Order_Form!M14=75,1.15,1) -> 1 | T104: 0
A105: =IF($A$53="W",+WDI_Standard_Order_Form!$AF$3,1) -> 0.515 | B105: 7 | C105: =+WDI_Standard_Order_Form!L45 -> 0 | D105: =IF(WDI_Standard_Order_Form!$J15=2.25,1,IF(WDI_Standard_Order_Form!$J15=2.5,1.05,IF(WDI_Standard_Order_Form!$J15=3.25,1.15,0))) -> 0 | E105: =IF(WDI_Standard_Order_Form!$J15=2.25,1,IF(WDI_Standard_Order_Form!$J15=2.5,1.05,IF(WDI_Standard_Order_Form!$J15=3.25,1.15,0))) -> 0 | F105: =IF(WDI_Standard_Order_Form!$J15=2.25,1,IF(WDI_Standard_Order_Form!$J15=2.5,1.05,IF(WDI_Standard_Order_Form!$J15=3.25,1.15,0))) -> 0 | G105: =IF(WDI_Standard_Order_Form!$J15=2.25,1,IF(WDI_Standard_Order_Form!$J15=2.5,1.05,IF(WDI_Standard_Order_Form!$J15=3.25,1.15,0))) -> 0 | H105: =IF(WDI_Standard_Order_Form!$J15=2.25,1,IF(WDI_Standard_Order_Form!$J15=2.5,1.05,IF(WDI_Standard_Order_Form!$J15=3.25,1.15,0))) -> 0 | I105: =IF(WDI_Standard_Order_Form!$J15=2.25,1,IF(WDI_Standard_Order_Form!$J15=2.5,1.05,IF(WDI_Standard_Order_Form!$J15=3.25,1.15,0))) -> 0 | J105: =IF(WDI_Standard_Order_Form!$J15=2.25,1,IF(WDI_Standard_Order_Form!$J15=2.5,1.05,IF(WDI_Standard_Order_Form!$J15=3.25,1.15,0))) -> 0 | K105: =IF(WDI_Standard_Order_Form!$J15=2.25,1,IF(WDI_Standard_Order_Form!$J15=2.5,1.05,IF(WDI_Standard_Order_Form!$J15=3.25,1.15,0))) -> 0 | L105: =IF(WDI_Standard_Order_Form!$J15=2.25,1,IF(WDI_Standard_Order_Form!$J15=2.5,1.05,IF(WDI_Standard_Order_Form!$J15=3.25,1.15,0))) -> 0 | M105: =IF(WDI_Standard_Order_Form!$J15=2.25,1,IF(WDI_Standard_Order_Form!$J15=2.5,1.05,IF(WDI_Standard_Order_Form!$J15=3.25,1.15,0))) -> 0 | N105: =IF(WDI_Standard_Order_Form!$J15=2.25,1,IF(WDI_Standard_Order_Form!$J15=2.5,1.05,IF(WDI_Standard_Order_Form!$J15=3.25,1.15,0))) -> 0 | O105: =IF(WDI_Standard_Order_Form!$J15=2.25,1,IF(WDI_Standard_Order_Form!$J15=2.5,1.05,IF(WDI_Standard_Order_Form!$J15=3.25,1.15,0))) -> 0 | P105: =IF(WDI_Standard_Order_Form!$J15=2.25,1,IF(WDI_Standard_Order_Form!$J15=2.5,1.05,IF(WDI_Standard_Order_Form!$J15=3.25,1.15,0))) -> 0 | R105: 0 | S105: =IF(WDI_Standard_Order_Form!M15=75,1.15,1) -> 1 | T105: 0
A106: =IF($A$53="W",+WDI_Standard_Order_Form!$AF$3,1) -> 0.515 | B106: 8 | C106: =+WDI_Standard_Order_Form!L46 -> 0 | D106: =IF(WDI_Standard_Order_Form!$J16=2.25,1,IF(WDI_Standard_Order_Form!$J16=2.5,1.05,IF(WDI_Standard_Order_Form!$J16=3.25,1.15,0))) -> 0 | E106: =IF(WDI_Standard_Order_Form!$J16=2.25,1,IF(WDI_Standard_Order_Form!$J16=2.5,1.05,IF(WDI_Standard_Order_Form!$J16=3.25,1.15,0))) -> 0 | F106: =IF(WDI_Standard_Order_Form!$J16=2.25,1,IF(WDI_Standard_Order_Form!$J16=2.5,1.05,IF(WDI_Standard_Order_Form!$J16=3.25,1.15,0))) -> 0 | G106: =IF(WDI_Standard_Order_Form!$J16=2.25,1,IF(WDI_Standard_Order_Form!$J16=2.5,1.05,IF(WDI_Standard_Order_Form!$J16=3.25,1.15,0))) -> 0 | H106: =IF(WDI_Standard_Order_Form!$J16=2.25,1,IF(WDI_Standard_Order_Form!$J16=2.5,1.05,IF(WDI_Standard_Order_Form!$J16=3.25,1.15,0))) -> 0 | I106: =IF(WDI_Standard_Order_Form!$J16=2.25,1,IF(WDI_Standard_Order_Form!$J16=2.5,1.05,IF(WDI_Standard_Order_Form!$J16=3.25,1.15,0))) -> 0 | J106: =IF(WDI_Standard_Order_Form!$J16=2.25,1,IF(WDI_Standard_Order_Form!$J16=2.5,1.05,IF(WDI_Standard_Order_Form!$J16=3.25,1.15,0))) -> 0 | K106: =IF(WDI_Standard_Order_Form!$J16=2.25,1,IF(WDI_Standard_Order_Form!$J16=2.5,1.05,IF(WDI_Standard_Order_Form!$J16=3.25,1.15,0))) -> 0 | L106: =IF(WDI_Standard_Order_Form!$J16=2.25,1,IF(WDI_Standard_Order_Form!$J16=2.5,1.05,IF(WDI_Standard_Order_Form!$J16=3.25,1.15,0))) -> 0 | M106: =IF(WDI_Standard_Order_Form!$J16=2.25,1,IF(WDI_Standard_Order_Form!$J16=2.5,1.05,IF(WDI_Standard_Order_Form!$J16=3.25,1.15,0))) -> 0 | N106: =IF(WDI_Standard_Order_Form!$J16=2.25,1,IF(WDI_Standard_Order_Form!$J16=2.5,1.05,IF(WDI_Standard_Order_Form!$J16=3.25,1.15,0))) -> 0 | O106: =IF(WDI_Standard_Order_Form!$J16=2.25,1,IF(WDI_Standard_Order_Form!$J16=2.5,1.05,IF(WDI_Standard_Order_Form!$J16=3.25,1.15,0))) -> 0 | P106: =IF(WDI_Standard_Order_Form!$J16=2.25,1,IF(WDI_Standard_Order_Form!$J16=2.5,1.05,IF(WDI_Standard_Order_Form!$J16=3.25,1.15,0))) -> 0 | R106: 0 | S106: =IF(WDI_Standard_Order_Form!M16=75,1.15,1) -> 1 | T106: 0
A107: =IF($A$53="W",+WDI_Standard_Order_Form!$AF$3,1) -> 0.515 | B107: 9 | C107: =+WDI_Standard_Order_Form!L47 -> 0 | D107: =IF(WDI_Standard_Order_Form!$J17=2.25,1,IF(WDI_Standard_Order_Form!$J17=2.5,1.05,IF(WDI_Standard_Order_Form!$J17=3.25,1.15,0))) -> 0 | E107: =IF(WDI_Standard_Order_Form!$J17=2.25,1,IF(WDI_Standard_Order_Form!$J17=2.5,1.05,IF(WDI_Standard_Order_Form!$J17=3.25,1.15,0))) -> 0 | F107: =IF(WDI_Standard_Order_Form!$J17=2.25,1,IF(WDI_Standard_Order_Form!$J17=2.5,1.05,IF(WDI_Standard_Order_Form!$J17=3.25,1.15,0))) -> 0 | G107: =IF(WDI_Standard_Order_Form!$J17=2.25,1,IF(WDI_Standard_Order_Form!$J17=2.5,1.05,IF(WDI_Standard_Order_Form!$J17=3.25,1.15,0))) -> 0 | H107: =IF(WDI_Standard_Order_Form!$J17=2.25,1,IF(WDI_Standard_Order_Form!$J17=2.5,1.05,IF(WDI_Standard_Order_Form!$J17=3.25,1.15,0))) -> 0 | I107: =IF(WDI_Standard_Order_Form!$J17=2.25,1,IF(WDI_Standard_Order_Form!$J17=2.5,1.05,IF(WDI_Standard_Order_Form!$J17=3.25,1.15,0))) -> 0 | J107: =IF(WDI_Standard_Order_Form!$J17=2.25,1,IF(WDI_Standard_Order_Form!$J17=2.5,1.05,IF(WDI_Standard_Order_Form!$J17=3.25,1.15,0))) -> 0 | K107: =IF(WDI_Standard_Order_Form!$J17=2.25,1,IF(WDI_Standard_Order_Form!$J17=2.5,1.05,IF(WDI_Standard_Order_Form!$J17=3.25,1.15,0))) -> 0 | L107: =IF(WDI_Standard_Order_Form!$J17=2.25,1,IF(WDI_Standard_Order_Form!$J17=2.5,1.05,IF(WDI_Standard_Order_Form!$J17=3.25,1.15,0))) -> 0 | M107: =IF(WDI_Standard_Order_Form!$J17=2.25,1,IF(WDI_Standard_Order_Form!$J17=2.5,1.05,IF(WDI_Standard_Order_Form!$J17=3.25,1.15,0))) -> 0 | N107: =IF(WDI_Standard_Order_Form!$J17=2.25,1,IF(WDI_Standard_Order_Form!$J17=2.5,1.05,IF(WDI_Standard_Order_Form!$J17=3.25,1.15,0))) -> 0 | O107: =IF(WDI_Standard_Order_Form!$J17=2.25,1,IF(WDI_Standard_Order_Form!$J17=2.5,1.05,IF(WDI_Standard_Order_Form!$J17=3.25,1.15,0))) -> 0 | P107: =IF(WDI_Standard_Order_Form!$J17=2.25,1,IF(WDI_Standard_Order_Form!$J17=2.5,1.05,IF(WDI_Standard_Order_Form!$J17=3.25,1.15,0))) -> 0 | R107: 0 | S107: =IF(WDI_Standard_Order_Form!M17=75,1.15,1) -> 1 | T107: 0
A108: =IF($A$53="W",+WDI_Standard_Order_Form!$AF$3,1) -> 0.515 | B108: 10 | C108: =+WDI_Standard_Order_Form!L48 -> 0 | D108: =IF(WDI_Standard_Order_Form!$J18=2.25,1,IF(WDI_Standard_Order_Form!$J18=2.5,1.05,IF(WDI_Standard_Order_Form!$J18=3.25,1.15,0))) -> 0 | E108: =IF(WDI_Standard_Order_Form!$J18=2.25,1,IF(WDI_Standard_Order_Form!$J18=2.5,1.05,IF(WDI_Standard_Order_Form!$J18=3.25,1.15,0))) -> 0 | F108: =IF(WDI_Standard_Order_Form!$J18=2.25,1,IF(WDI_Standard_Order_Form!$J18=2.5,1.05,IF(WDI_Standard_Order_Form!$J18=3.25,1.15,0))) -> 0 | G108: =IF(WDI_Standard_Order_Form!$J18=2.25,1,IF(WDI_Standard_Order_Form!$J18=2.5,1.05,IF(WDI_Standard_Order_Form!$J18=3.25,1.15,0))) -> 0 | H108: =IF(WDI_Standard_Order_Form!$J18=2.25,1,IF(WDI_Standard_Order_Form!$J18=2.5,1.05,IF(WDI_Standard_Order_Form!$J18=3.25,1.15,0))) -> 0 | I108: =IF(WDI_Standard_Order_Form!$J18=2.25,1,IF(WDI_Standard_Order_Form!$J18=2.5,1.05,IF(WDI_Standard_Order_Form!$J18=3.25,1.15,0))) -> 0 | J108: =IF(WDI_Standard_Order_Form!$J18=2.25,1,IF(WDI_Standard_Order_Form!$J18=2.5,1.05,IF(WDI_Standard_Order_Form!$J18=3.25,1.15,0))) -> 0 | K108: =IF(WDI_Standard_Order_Form!$J18=2.25,1,IF(WDI_Standard_Order_Form!$J18=2.5,1.05,IF(WDI_Standard_Order_Form!$J18=3.25,1.15,0))) -> 0 | L108: =IF(WDI_Standard_Order_Form!$J18=2.25,1,IF(WDI_Standard_Order_Form!$J18=2.5,1.05,IF(WDI_Standard_Order_Form!$J18=3.25,1.15,0))) -> 0 | M108: =IF(WDI_Standard_Order_Form!$J18=2.25,1,IF(WDI_Standard_Order_Form!$J18=2.5,1.05,IF(WDI_Standard_Order_Form!$J18=3.25,1.15,0))) -> 0 | N108: =IF(WDI_Standard_Order_Form!$J18=2.25,1,IF(WDI_Standard_Order_Form!$J18=2.5,1.05,IF(WDI_Standard_Order_Form!$J18=3.25,1.15,0))) -> 0 | O108: =IF(WDI_Standard_Order_Form!$J18=2.25,1,IF(WDI_Standard_Order_Form!$J18=2.5,1.05,IF(WDI_Standard_Order_Form!$J18=3.25,1.15,0))) -> 0 | P108: =IF(WDI_Standard_Order_Form!$J18=2.25,1,IF(WDI_Standard_Order_Form!$J18=2.5,1.05,IF(WDI_Standard_Order_Form!$J18=3.25,1.15,0))) -> 0 | R108: 0 | S108: =IF(WDI_Standard_Order_Form!M18=75,1.15,1) -> 1 | T108: 0
A109: =IF($A$53="W",+WDI_Standard_Order_Form!$AF$3,1) -> 0.515 | B109: 11 | C109: =+WDI_Standard_Order_Form!L49 -> 0 | D109: =IF(WDI_Standard_Order_Form!$J19=2.25,1,IF(WDI_Standard_Order_Form!$J19=2.5,1.05,IF(WDI_Standard_Order_Form!$J19=3.25,1.15,0))) -> 0 | E109: =IF(WDI_Standard_Order_Form!$J19=2.25,1,IF(WDI_Standard_Order_Form!$J19=2.5,1.05,IF(WDI_Standard_Order_Form!$J19=3.25,1.15,0))) -> 0 | F109: =IF(WDI_Standard_Order_Form!$J19=2.25,1,IF(WDI_Standard_Order_Form!$J19=2.5,1.05,IF(WDI_Standard_Order_Form!$J19=3.25,1.15,0))) -> 0 | G109: =IF(WDI_Standard_Order_Form!$J19=2.25,1,IF(WDI_Standard_Order_Form!$J19=2.5,1.05,IF(WDI_Standard_Order_Form!$J19=3.25,1.15,0))) -> 0 | H109: =IF(WDI_Standard_Order_Form!$J19=2.25,1,IF(WDI_Standard_Order_Form!$J19=2.5,1.05,IF(WDI_Standard_Order_Form!$J19=3.25,1.15,0))) -> 0 | I109: =IF(WDI_Standard_Order_Form!$J19=2.25,1,IF(WDI_Standard_Order_Form!$J19=2.5,1.05,IF(WDI_Standard_Order_Form!$J19=3.25,1.15,0))) -> 0 | J109: =IF(WDI_Standard_Order_Form!$J19=2.25,1,IF(WDI_Standard_Order_Form!$J19=2.5,1.05,IF(WDI_Standard_Order_Form!$J19=3.25,1.15,0))) -> 0 | K109: =IF(WDI_Standard_Order_Form!$J19=2.25,1,IF(WDI_Standard_Order_Form!$J19=2.5,1.05,IF(WDI_Standard_Order_Form!$J19=3.25,1.15,0))) -> 0 | L109: =IF(WDI_Standard_Order_Form!$J19=2.25,1,IF(WDI_Standard_Order_Form!$J19=2.5,1.05,IF(WDI_Standard_Order_Form!$J19=3.25,1.15,0))) -> 0 | M109: =IF(WDI_Standard_Order_Form!$J19=2.25,1,IF(WDI_Standard_Order_Form!$J19=2.5,1.05,IF(WDI_Standard_Order_Form!$J19=3.25,1.15,0))) -> 0 | N109: =IF(WDI_Standard_Order_Form!$J19=2.25,1,IF(WDI_Standard_Order_Form!$J19=2.5,1.05,IF(WDI_Standard_Order_Form!$J19=3.25,1.15,0))) -> 0 | O109: =IF(WDI_Standard_Order_Form!$J19=2.25,1,IF(WDI_Standard_Order_Form!$J19=2.5,1.05,IF(WDI_Standard_Order_Form!$J19=3.25,1.15,0))) -> 0 | P109: =IF(WDI_Standard_Order_Form!$J19=2.25,1,IF(WDI_Standard_Order_Form!$J19=2.5,1.05,IF(WDI_Standard_Order_Form!$J19=3.25,1.15,0))) -> 0 | R109: 0 | S109: =IF(WDI_Standard_Order_Form!M19=75,1.15,1) -> 1 | T109: 0
A112: Factor & White | R112: LIST
A113: =+A98 -> W | C113: Casing widths factor | D113: =IF($A113="W",+D78,IF($A113="C",+D77,0)) -> 0.78 | R113: FACTOR
A114: =IF($A$53="W",+WDI_Standard_Order_Form!$AF$3,1) -> 0.515 | B114: 1 | C114: =+WDI_Standard_Order_Form!L54 -> 0 | D114: =+D99*D41 -> 0 | E114: =+E99*E41 -> 0 | F114: 0 | G114: 0 | H114: 0 | I114: 0 | J114: 0 | K114: 0 | L114: 0 | M114: 0 | N114: 0 | O114: 0 | P114: 0 | R114: =SUM(D114:Q114) -> 0
A115: =IF($A$53="W",+WDI_Standard_Order_Form!$AF$3,1) -> 0.515 | B115: 2 | C115: =+WDI_Standard_Order_Form!L55 -> 0 | D115: =+D100*D42 -> 0 | E115: 0 | F115: 0 | G115: 0 | H115: 0 | I115: 0 | J115: 0 | K115: 0 | L115: 0 | M115: 0 | N115: 0 | O115: 0 | P115: 0 | R115: =SUM(D115:Q115) -> 0
A116: =IF($A$53="W",+WDI_Standard_Order_Form!$AF$3,1) -> 0.515 | B116: 3 | C116: =+WDI_Standard_Order_Form!L56 -> 0 | D116: =+D101*D43 -> 0 | E116: 0 | F116: 0 | G116: 0 | H116: 0 | I116: 0 | J116: 0 | K116: 0 | L116: 0 | M116: 0 | N116: 0 | O116: 0 | P116: 0 | R116: 0
A117: =IF($A$53="W",+WDI_Standard_Order_Form!$AF$3,1) -> 0.515 | B117: 4 | C117: =+WDI_Standard_Order_Form!L57 -> 0 | D117: =+D102*D44 -> 0 | E117: 0 | F117: 0 | G117: 0 | H117: 0 | I117: 0 | J117: 0 | K117: 0 | L117: 0 | M117: 0 | N117: 0 | O117: 0 | P117: 0 | R117: 0
A118: =IF($A$53="W",+WDI_Standard_Order_Form!$AF$3,1) -> 0.515 | B118: 5 | C118: =+WDI_Standard_Order_Form!L58 -> 0 | D118: =+D103*D45 -> 0 | E118: 0 | F118: 0 | G118: 0 | H118: 0 | I118: 0 | J118: 0 | K118: 0 | L118: 0 | M118: 0 | N118: 0 | O118: 0 | P118: 0 | R118: 0
A119: =IF($A$53="W",+WDI_Standard_Order_Form!$AF$3,1) -> 0.515 | B119: 6 | C119: =+WDI_Standard_Order_Form!L59 -> 0 | D119: =+D104*D46 -> 0 | E119: 0 | F119: 0 | G119: 0 | H119: 0 | I119: 0 | J119: 0 | K119: 0 | L119: 0 | M119: 0 | N119: 0 | O119: 0 | P119: 0 | R119: 0
A120: =IF($A$53="W",+WDI_Standard_Order_Form!$AF$3,1) -> 0.515 | B120: 7 | C120: =+WDI_Standard_Order_Form!L60 -> 0 | D120: =+D105*D47 -> 0 | E120: 0 | F120: 0 | G120: 0 | H120: 0 | I120: 0 | J120: 0 | K120: 0 | L120: 0 | M120: 0 | N120: 0 | O120: 0 | P120: 0 | R120: 0
A121: =IF($A$53="W",+WDI_Standard_Order_Form!$AF$3,1) -> 0.515 | B121: 8 | C121: =+WDI_Standard_Order_Form!L61 -> 0 | D121: =+D106*D48 -> 0 | E121: 0 | F121: 0 | G121: 0 | H121: 0 | I121: 0 | J121: 0 | K121: 0 | L121: 0 | M121: 0 | N121: 0 | O121: 0 | P121: 0 | R121: 0
A122: =IF($A$53="W",+WDI_Standard_Order_Form!$AF$3,1) -> 0.515 | B122: 9 | C122: =+WDI_Standard_Order_Form!L62 -> 0 | D122: =+D107*D49 -> 0 | E122: 0 | F122: 0 | G122: 0 | H122: 0 | I122: 0 | J122: 0 | K122: 0 | L122: 0 | M122: 0 | N122: 0 | O122: 0 | P122: 0 | R122: 0
A123: =IF($A$53="W",+WDI_Standard_Order_Form!$AF$3,1) -> 0.515 | B123: 10 | C123: =+WDI_Standard_Order_Form!L63 -> 0 | D123: =+D108*D50 -> 0 | E123: 0 | F123: 0 | G123: 0 | H123: 0 | I123: 0 | J123: 0 | K123: 0 | L123: 0 | M123: 0 | N123: 0 | O123: 0 | P123: 0 | R123: 0
A124: =IF($A$53="W",+WDI_Standard_Order_Form!$AF$3,1) -> 0.515 | B124: 11 | C124: =+WDI_Standard_Order_Form!L64 -> 0 | D124: =+D109*D51 -> 0 | E124: 0 | F124: 0 | G124: 0 | H124: 0 | I124: 0 | J124: 0 | K124: 0 | L124: 0 | M124: 0 | N124: 0 | O124: 0 | P124: 0 | R124: 0

Sheet Revisions
A1: Date | B1: Description
A2: 2018-12-14 | B2: Change pricing to 2019 price base
A3: 2018-12-14 | B3: Add WDBB-001 to profile list
A4: 2018-12-14 | B4: Add WDBC-022 @ 1.875" to profile list
A5: 2018-12-20 | B5: Add CRI pricing
A7: 2018-12-14 | B7: Following changes for version Jan-B2 to implement in January
A8: 2018-12-31 | B8: Change colors to new color #'s
A9: 2018-12-31 | B9: Specs, colors, & profiles updated
A10: 2019-01-29 | B10: Color #50+ | C10: v1901Jan-B2-COLR
A11: 2019-03-26 | B11: moved to Master Template area on server so everyone uses same master | C11: v1903Mar-B2-COLR
A12: 2019-12-23 | B12: Changed to 2020 pricing, updates templates | C12: v2001Jan-T1-COLR
A13: 2019-12-31 | B13: Changed to 2020 pricing, updates templates | C13: v2001Jan-T2-COLR
A14: 2020-01-22 | B14: Corrected error in Octagon label printing | C14: v2001Jan-T3-COLR
A15: 2020-01-23 | B15: Octagon w/cutlist | C15: v2001Jan-T4-COLR
A16: 2020-02-12 | B16: Colors 2019 or newer | C16: v2002Feb-T1-Mfg
A17: 2020-12-21 | B17: fixed Octagons to correct #'s cutlist & changed for 2021 pricing | C17: v2012Dec-T1-Mfg
A18: 2021-01-06 | B18: Corrected price on WDI stop | C18: v2101Jan-T1-Mfg
A19: 2021-06-28 | B19: Price change effective 7/18/21 | C19: v2107Jul-T1-Mfg
A20: 2021-12-09 | B20: Price change effective 1/1/22 | C20: v2201Jan - Mfg
A21: 2022-06-07 | B21: Price change effective 7/1/22 | C21: v2207Jul - Mfg
A22: 2023-01-20 | B22: Price change effective 2/5/23 | C22: v2302Feb - Mfg
C23: =+C22 -> v2302Feb - Mfg
C24: v2302Feb - Mfg
C25: v2302Feb - Mfg
C26: v2302Feb - Mfg
C27: v2302Feb - Mfg
C28: v2302Feb - Mfg
C29: v2302Feb - Mfg
C30: v2302Feb - Mfg
C31: v2302Feb - Mfg
C32: v2302Feb - Mfg
C33: v2302Feb - Mfg
A34: =+C33 -> v2302Feb - Mfg | B34: <-- Version label for page #1
